{"text_format":"1","workbook":"xlsx","n_sheets":8,"sheets":["Aide","Base","Système","Listes","Scan","Accueil","Vierge","LouReeD"],"not_rendered":{"charts":0,"images":1,"macros":1,"external_links":0,"defined_names":33,"comments":0,"pivot_tables":0},"unopened":[],"bounds":{"document_bytes":16777216,"sheet_cells":100000,"rows_first":2000,"rows_last":500,"rows_between":2000,"halvings":0,"cell_chars":16384,"cell_head_chars":4096},"cells_cut":0,"cells_raw":0,"read":"whole","date_system":"1900"}

{"sheet":"Aide","index":0,"n_rows":8,"n_cols":3,"rows_kept":8,"cut":false,"hidden":false,"merged":[]}
["A propos de l'Aide et du programme PROSPER","A propos de l'aide :\n***********************\n\nCette aide a été réalisée pour décrire les différentes feuilles de cette application et pour en expliquer le fonctionnement.\n\nLe fonctionnement de cette aide est très simple.\nUn clique sur le boutton [Aide] d'une des feuilles du classeur et elle affiche l'aide de la feuille où se trouve le bouton cliqué.\nUne fois lancée, il vous est possible de naviguer entre les différentes rubriques de l'aide, soit avec les bouttons [Précédent] ou [Suivant], soit par le menu déroulant des rubriques d'aide.\nCette aide est faite pour le programme PROSPER (PROgramme de Suivi du PERsonnel).\n\nPour modifier le texte d'une des rubriques d'aides, il suffit de modifier celui contenu dans la cellule de la colonne \"B\" de la feuille Aide.\nLes retours à la ligne se font en appuyant simultanément les touches [atl] et [entrée] du clavier.\nLe texte d'aide d'une rubrique doit rester sur une seule cellule.\n\nPour ajouter une rubrique, il suffit d'inscrire le titre de la rubrique dans la colonne \"A\" sur la première cellule vide de la colone.\nEnsuite, entrez le texte d'aide dans la cellule de la colonne \"B\".\nC'est la macro qui gérera la prise en compte du rajout.\nSi vous voulez modifier l'ordre de passage des différentes rubriques, alors il vous suffit de modifier l'ordre des lignes contenant les cellules de \"A1\" à \"B8\" (ou plus) en effectuant des couper/coller.\n\n\n\nA propos du programme PROSPER :\n********************************************\nPROSPER = PROgramme de Suivi du PERsonnel\nC'est une application pour l'aide au suivi de qualifications, de licences, de formation du personnel.\nLe principe général est :\n       chaque personnel doit accéder à différentes qualifications, licences ou formations. Pour ce faire il subit des instructions, des formations ou exécute des opérations afin de valider une qualification. \n       ces opérations doivent être suivies pour la traçabilité des la formation.\n       certaines de ces opérations, formations ou instructions sont soumises à un renouvellement, donc à une validité, donc à une date de \"péremption\".\n\nC'est ce que fait cette application...\n\nLe programme  PROSPER est basé sur des feuilles de calcul Excel version 2010. Il utilise des Macros.\nLa plupart des fonctions d'ajout, de suppression, de modification, de recherche sont à lancer par des boutons qui actionnent ces macros, donc :\n\n     AUCUNES MODIFICATIONS DE FEUILLES SANS PASSER PAR LA MACRO ADEQUATE !!!!  RISQUE DE PLANTAGE !!!\n\nLe plus sûr est d'enregistrer le fichier avant de lancer une macro.\n\nLa mise en forme des couleurs de suivi du personnel est basée sur des formules simples de condition. Ces formules se trouvent sur chacune des feuilles de suivi du personnel, ainsi que sur la feuille \"Vierge\".\n\n\n\n\n\n************************************************************************************************\n* LouReeD - Forum EXCEL Pratique.com  - Sans droits réservés - 2013 - 2017 *\n************************************************************************************************\n\n\n"]
["Description de la feuille \"Base\"","Cette feuille est la feuille de la base de donnée des opérations qui sont suivies dans ce programme en accord avec les différentes fonctions.\n\nL'ajout, la modification ou la suppression d'un intitulé d'opération DOIT PASSER PAR LES MACROS PILOTEES SUR LA FEUILLE SYSTEME !!!\n\n     PAS DE MODIFICATION SANS PASSER PAR LES MACROS !!!!\n\nC'est sur ce tableau de base de données qu'il faut sélectionner les intitulés des opérations en fonction du suivi à faire pour le personnel.\nMettre un \"1\" si l'opération doit être effectuée une fois.\nMettre un \"11\" si l'opération doit être effectuée une fois avec un renouvellement.\nRemplir la colonne \"Validitée en mois\" avec le nombre de mois que l'opération est valide (si 2 ans, inscrire 24).\nRemplir la colonne \"Limite opération\" qui correspond au nombre de mois où l'opération s'affiche en \"orange\" avant sa date limite de validité (date limite de validité le 11/12/2013, nombre de mois pour l'affichage en orange : 3, l'opération s'affichera en orange à partir du 11/09/2013).\n\nLe nom des Fonctions sont à modifés sur ce tableau, vous avez la possibilité d'y renseigner 30 fonctions. Attention ! il ne faut pas intégrer des \"retour à la ligne\" dans ces cellules.\nLes intitulés \"Limite opération\" et \"Validité en mois\" ne sont pas à modifier car leur nom est utilisé dans des formules !\n\n\n\n"]
["Description de la feuille \"Système\"","Cette feuille permet de créer ou de supprimer une fiche de suivi de personnel, d'ajouter, de modifier ou de supprimer un intitulé d'opération et de choisir la date de référence pour l'affichage chromatique des fiches de suivi et de la feuille \"Récap\".\n\nUne cellule est affectée à la valeur de \"décalage\" qui correspond au nombre de ligne qui sépare le numéro de ligne Excel de la ligne de titre de la base de donnée sur l'onglet \"Base\" et le numéro de ligne de la ligne de titre des feuilles de suivi du personnel ainsi que la feuille \"Vierge\". Actuellement cette valeur est de 9, car sur la Base de donnée, le titre est en ligne 1 et il est sur le tableau de suivi des personnel en ligne 10. Si à l'avenir les feuilles devaient subir un rajout ou une suppression de ligne au dessus de la ligne de titre du suivi, alors cette valeur de 9 serait à modifier.\n\nPour la création d'une fiche de personnel :\n***************************************************\nIl suffit d'indiquer le \"NOM PRENOM\" du personnel dans la cellule prévue à cet effet (pour un nouveau nom le programme vous demande de confirmer la continuité de l'action) et de cliquer sur le bouton [Ajouter]. Lors de la création, un test de redondance est fait afin d'interdire la création de plusieurs fiches portant le même nom.\n\nPour la suppression d'une fiche de personnel :\n********************************************************\nIl suffit d'indiquer le \"NOM PRENOM\" du personnel dans la cellule prévue grâce au menu déroulant qui affiche la liste complète des personnels existant dans le suivi et de cliquer sur le bouton [Supprimer].\nUn message de confirmation apparait, on ne sait jamais... Pas de retour en arrière possible...\n\nPour la création d'un intitulé d'opération :\n************************************************\nIl suffit de rentrer l'intitulé dans la cellule prévu à cet effet (pour un nouvel intitulé le programme vous demande de confirmer la continuité de l'action) et de cliquer sur [Ajouter]. Lors de la création, un test de redondance est fait afin d'interdire la création de plusieurs intitulés identiques.\n\nPour la modification d'un intitulé :\n***************************************\nIl suffit de sélectionner l'intitulé à modifier dans la cellule prévue à cet effet par la liste déroulante, et d'indiquer dans la deuxième cellule le nouvel intitulé, puis de cliquer sur [Modifier].\n\nPour la suppression d'un intitulé :\n****************************************\nIl suffit de sélectionner l'intitulé à supprimer dans la cellule prévue à cet effet par la liste déroulante, et de cliquer sur [Supprimer].\nUn message de confirmation apparait, on ne sait jamais... Pas de retour en arrière possible...\n\nCette feuille indique également le nombre de feuille \"Système\" pour le fonctionnement du programme, le nombre de fiches de suivi de personnel créés ainsi que le nombre d'opérations enregistrées.\n\nSi pour une raison quelconque vous deviez ajouter une feuille autre qu'une fiche de suivi du personnel, alors il vous faudra dans un premier temps créer la feuille en effectuant une insertion feuille, ensuite de déplacer l'onglet de cette feuille sur la gauche du classeur, puis sur la feuille \"Système\" il vous faudra modifier la valeur de la cellule \"J4\" et indiquer la nouvelle valeur du nombre de feuille autre que celles de suivi du personnel.\nDans la version 2 du programme ce nombre est de 7 : \"Aide\", \"Base\",  \"Système\", \"Listes\", \"Scan\", \"Accueil\" et \"Vierge\".\n\n\n\n\n\n\n"]
["Description de la feuille \"Personnel\"","Cette feuille est la feuille de suivi du personnel.\n\nDans l'entête on y trouve :\n*******************************\n- sur la partie supérieure gauche :\n     - Le Nom Prénom du personnel\n     - La situation chromatique de la fiche à la date de référence\n     - Le NNI\n     - La date de naissance\n     - Le service\n     - Le métier\n     - Donnée 1\n     - Donnée 2\n     - Donnée 3\n     A part l'indication du NOM PRENOM et la donnée du service (service où travaille le personnel) les autres données sont purement informative et ne sont pas reprises dans l'application.\n\n- sur la partie supérieure droite :\n     - Le suivi des différentes fonctions dont le personnel doit suivre les opérations, et pour chacune d'elle, sa situation au niveau de la ligne \"Etat\" : Valide, Non valide, En limite ou En cours, avec le code couleur associé : blanc, rouge, orange et blanc.\n     - La ligne \"Filtrage\" qui permet en sélectionnant \"Unique\" de n'afficher que les opérations de la fonction choisie.\n\nDans la partie basse de la fiche de suivi on y trouve :\n***************************************************************\n\n     - les opérations à suivre ou à effectuer pour les différentes fonctions désignées pour ce personnel, ainsi que les dates initiales et de renouvellement s'il y a besoin. \n     - la durée de validité des opérations soumises à maintien (en mois) ainsi que la date de péremption de ces opérations (cette cellule applique le code couleur classique du suivi sauf pour le vert : une opération à jour est sur fond blanc, en limite c'est jaune et rouge quand elle est dépassée).\n\n     Un bouton [Scan] permet de se rendre sur la feuille \"Scan\"\n\n     Un bouton [Accueil] permet de se diriger sur la feuille \"Accueil\"\n\n     Un bouton [Aide] permet d'afficher l'aide de cette feuille\n\n\n\n\n\n\n"]
["Description de la feuille \"Accueil\"","Cette feuille est le récapitulatif de la situation du personnel qualifié ou en cours de l'être.\n\nUn personnel dont on a attribué une (des) fonction(s), sera suivi dans la (les) colonne(s) correspondante(s) à cette (ces) fonction(s) avec la mention \"En cours\" sur fond bleu.\n\nUn personnel ayant fini sa formation sur une fonction sera indiqué avec la mention \"Valide\" sur fond vert au niveau de ce suivi.\nCe texte \"Valide\" peut être modifié en fonction de l'état de ce suivi :\n     \"Non valide\" sur fond rouge quand une date limite est dépassée,\n     \"En limite\" sur fond orange quand au moins une date arrive dans une zone limite par rapport à une date limite.\n \nColonne \"Nom Prénom\" : Cette colonne contient un lien vers la feuille de suivi du personnel concerné.\nColonne \"Service\" : indique le service du personnel.\nColonne \"Progression\" : indique le % de progression \"Individuelle\" du personnel dans la progression globale de ses différentes fonctions. Au dessus c'est le % de progression global de tout le personnel.\nLigne \"Personnel valide\" : elle indique le nombre personnel ayant acquis la fonction, qu'il soit valide ou en limite.\nLigne \"Personnel non valide\" : elle indique le nombre de personnel n'étant plus valide dans la fonction.\nLigne \"Personnel en cours de formation\" : elle indique le nombre de personnel en cours de formation dans les différentes fonctions.\n\n\n",1]
["Description de la feuille \"Listes\"","Cette feuille est la feuille qui regroupe les diférentes liste de choix du programme.\n\nOn y trouve aussi la date mini de validité des dates à rentrer sur les feuilles de suivi du personnel, ainsi que l'adresse de l'atelier du personnel sur les fiches de suivi.\n\n\n"]
["Description du UserForm de recherche","Ce UserForm permet de rechercher des données à propos des personnels.\n\nTrois choix vous sont offerts :\n\nRecherche critère unique :\n********************************\nIl suffit pour cela de sélectionner une opération dans la liste de choix qui vous est proposée, et de cliquer sur le bouton [Lancer la recherche critère unique].\nL'application extrait le nom de tout les personnels concernés par cette opération, ainsi que la date d'éxécution, la durée éventuelle de validation ainsi que la date de péremption s'il y a lieu,  qu'ils soient \"Valide\", \"En limite\", \"Non valide\", \"En cours\" ou autre.\n\nRecherche multi-critères :\n*******************************\nIl suffit pour cela de sélectionner une opération dans chaque liste de choix qui voussont proposées.\nSi vous avez besoin de plus de deux opérations, alors il vous est possible de cocher la \" boite à cocher\" d'une opération supplémentaire.\nL'application vous autorise une recherche sur 10 opérations maximum. Chaque intitulé doit être différent des autres, et différent de rien, sinon aucune extraction n'est faite.\nIl ne vous reste plus qu'à cliquer sur le bouton [Lancer la recherche multi-critères].\nL'application extrait le nom de tous les personnels concernés par l'ensemble des opérations et dont toutes les opérations sélectionnées sont renseignées soit par une date soit par un commentaire autre (exemple : permanent).\n\nRecherche de péremption :\n*********************************\nIl suffit pour cela de sélectionner une opération dans la liste de choix qui vous est proposée, et de cliquer sur le bouton [lancer la recherche de péremption].\nL'application extrait le nom du ou des personnels concernés par l'opération, ainsi que la date d'éxécution, la durée de validité et la date de péremption.\n***** ATTENTION ! *****\nSeul le personnel \"Périmé\", \"En cours\" ou \"En limite\" apparaissent sur l'extraction.\nLe personnel en limite correspond au personnel qui arrive en péremption dans le nombre de mois de mise en limite.\n\nIl est possible pour ce cas d'entrer une date de référence qui se substitue à la date du jour actuel :\nexemple :\nnous sommes le 10/01/2014, on recherche les péremptions sur \"l'opération 01\" (validité 24 mois, limite à 4 mois), on peut avoir comme résultats :\n     recherche sans date de référence (situation au jour actuel) :\n          personnel 1 - éxécution le 15/12/2011 - validité 24 mois - date de péremption 15/12/2013 (cellule sur fond \"rouge\")\n          personnel 2 - éxécution le 05/05/2012 - validité 24 mois - date de péremption 05/05/2014 (cellule sur fond blanc)\n          personnel 3 - pas de date d'éxécution - pas de validité - \"En cours\" (cellule sur fond blanc)\n          personnel 4 - éxécution le 11/05/2012 - validité 24 mois - date de péremption 11/05/2014 (la ligne n'est pas affichée, le personnel n'est pas périmé et il n'est pas dans la zone de date du jour + limite soit jusqu'au 10/05/2014)\n\n     recherche avec une date de référence (le 01/04/2014 par exemple) :\n          personnel 1 - éxécution le 15/12/2011 - validité 24 mois - date de péremption 15/12/2013 (cellule sur fond \"rouge\")\n          personnel 2 - éxécution le 05/05/2012 - validité 24 mois - date de péremption 05/05/2014 (cellule sur fond blanc)\n          personnel 3 - pas de date d'éxécution - pas de validité - \"En cours\" (cellule sur fond blanc)\n          personnel 4 - éxécution le 11/05/2012 - validité 24 mois - date de péremption 11/05/2014 (cellule sur fond blanc) - C'est là la différence, on a simulé le fait d'être le 01/04/2014, donc cette opération pour ce personnel apparait \"En limite\".\n\n\n\n\n\n"]
["Chronologie du suivi d'un personnel","Chronologie du suivi d'un personnel :\n*******************************************\n\nArrivée du personnel.\nLancement de l'application : \"PROSPER\".\n\nPrise en compte du nouveau personnel dans le programme :\n************************************************************************\n\nSélection de la feuille \"Système\".\nEntrez le NOM PRENOM du personnel dans la cellule prévue à cet effet.\nClique sur le bouton [Ajouter].\nLa fiche de suivi du personnel est crée et sélectionnée, il ne reste plus qu'à entrer les données du personnel : NNI, Cellule, type de suivi à suivre, etc...\n\n\n\n"]

{"sheet":"Base","index":1,"n_rows":7,"n_cols":34,"rows_kept":7,"cut":false,"hidden":false,"merged":[]}
["2011-10-20","Toutes les Opérations, Instructions ou Formations","LouReeD 01","LouReeD 02","Fonction 03","Fonction 04","Fonction 05","Fonction 06","Fonction 07","Fonction 08","Fonction 09","Fonction 10","Fonction 11","Fonction 12","Fonction 13","Fonction 14","Fonction 15","Fonction 16","Fonction 17","Fonction 18","Fonction 19","Fonction 20","Fonction 21","Fonction 22","Fonction 23","Fonction 24","Fonction 25","Fonction 26","Fonction 27","Fonction 28","Fonction 29","Fonction 30","Validité en mois","Limite opération"]
[{"$f":"ROW()+décalage","v":8},"AA",1,11,1,1,1,1,1,1,1,1,1,1,1,1,1,1,1,1,1,1,1,1,1,1,1,1,1,1,1,1,6,1]
[9,"BB",null,1,11,null,null,null,null,null,null,null,null,null,null,null,null,null,null,null,null,null,null,null,null,null,null,null,null,null,null,null,6,1]
[10,"CC",null,11,null,null,1,null,null,null,null,null,null,null,null,null,null,null,null,null,null,null,null,null,null,null,null,null,null,null,null,null,12,2]
[11,"DD",null,1,null,null,11,null,null,null,null,null,null,null,null,null,null,null,null,null,null,null,null,null,null,null,null,null,null,null,null,null,12,3]
[12,"opération 01",null,11,null,null,null,null,null,null,null,null,null,null,null,null,null,null,null,null,null,null,null,null,null,null,null,null,null,null,null,null,24,6]
[13,"Z - ne pas effacer cet intitulé d'opération !"]

{"sheet":"Système","index":2,"n_rows":25,"n_cols":10,"rows_kept":25,"cut":false,"hidden":false,"merged":[[1,5,1,6],[1,2,1,3],[4,11,15,11],[4,1,4,10],[8,2,8,9],[5,10,8,10],[5,1,8,1],[11,2,11,9],[12,2,12,9],[5,2,5,8],[10,1,15,1],[10,2,10,9],[15,2,15,9],[6,2,6,8],[7,2,7,8],[10,10,15,10],[13,2,13,6],[14,2,14,6],[22,2,22,9],[23,2,23,9],[25,2,25,9],[24,2,24,9],[18,2,18,9],[19,2,19,9],[21,2,21,9],[16,1,16,11],[17,1,17,10],[18,1,27,1],[18,10,27,10],[26,2,27,9],[20,2,20,9]]}
[]
[null,null,"Date de référence éventuelle",null,null,"Date calculé pour le chromatique",null,{"$f":"IF($E$2=\"\",TODAY(),$E$2)","v":"2019-07-15"},"Décalage BD",6]
[]
[]
[]
[null,null,"Nombre d'intitulés d'opérations enregistrées",null,null,null,null,null,null,6]
[null,null,"Nombre de personnel dont la fiche de suivie est éditée",null,null,null,null,null,null,1]
[null,null,"Nombre de feuille du classeur autre que fiche de suivi",null,null,null,null,null,null,7]
[]
[]
[]
[null,null,"AJOUT - SUPPRESSION DE FICHE DE SUIVI DE PERSONNEL"]
[]
[null,null,"Nom Prénom"]
[]
[]
[]
[]
[null,null,"AJOUT - SUPPRESSION - MODIFICATION\nDES OPERATIONS DE LA BASE DE DONNEES"]
[]
[null,null,"Intitulé de l'opération à ajouter , à modifier ou à supprimer"]
[]
[]
[null,null,{"$f":"IF($C$26<>\"\",IF(COUNTIF(Base!$B$1:$B7,$C$26)>0,\"Attention ! Redondance pour la modification ! Veuillez modifier l'intitulé, merci\",\"\"),IF(C22=\"\",\"En attente\",IF(COUNTIF(Base!$B$1:$B7,$C$22)<>0,\"Attention ! Redondance. L'opération existe déjà ! Si c'est pour une modification\",\"L'opération n'existe pas encore, vous pouvez l'ajouter\")))","v":"En attente"}]
[null,null,{"$f":"IF($C$22<>\"\",IF($C$24=\"L'opération n'existe pas encore, vous pouvez l'ajouter\",\"\",IF($C$26<>\"\",IF(COUNTIF(Base!$B$1:$B7,$C$26)>0,\"Attention ! Redondance pour la modification ! Veuillez modifier l'intitulé, merci\",\"Nouvel intitulé testé et valide, vous pouvez cliquer sur [MODIFIER] pour la modification\"),\"entrez le nouvel intitulé de l'opération ci-dessous\")),\"\")","v":""}]

{"sheet":"Listes","index":3,"n_rows":31,"n_cols":6,"rows_kept":31,"cut":false,"hidden":false,"merged":[]}
["Service","Fonctions","Calcul intermédiare","Fonctions Utiles","Licences","Adresse de l'atelier du personnel"]
["Service 01",{"$f":"Base!C$1","v":"LouReeD 01"},{"$f":"IF(SUM(INDIRECT(\"Base!L2C\"&ROW()+1&\":L\"&COUNTA(Base!B:B)&\"C\"&ROW()+1,FALSE))>0,B2,\"\")","v":"LouReeD 01"},{"$f":"IFERROR(INDEX(C$2:C$31,MATCH(SMALL(IF((COUNTIF(D$1:D1,C$2:C$31)=0)*(C$2:C$31<>\"\"),COUNTIF(C$2:C$31,\"<\"&C$2:C$31)),1),IF(C$2:C$31<>\"\",COUNTIF(C$2:C$31,\"<\"&C$2:C$31)),0)),\"\")","v":"Fonction 03"},"Unique","B3"]
["Service 02",{"$f":"Base!D$1","v":"LouReeD 02"},{"$f":"IF(SUM(INDIRECT(\"Base!L2C\"&ROW()+1&\":L\"&COUNTA(Base!B:B)&\"C\"&ROW()+1,FALSE))>0,B3,\"\")","v":"LouReeD 02"},{"$f":"IFERROR(INDEX(C$2:C$31,MATCH(SMALL(IF((COUNTIF(D$1:D2,C$2:C$31)=0)*(C$2:C$31<>\"\"),COUNTIF(C$2:C$31,\"<\"&C$2:C$31)),1),IF(C$2:C$31<>\"\",COUNTIF(C$2:C$31,\"<\"&C$2:C$31)),0)),\"\")","v":"Fonction 04"}]
["Service 03",{"$f":"Base!E$1","v":"Fonction 03"},{"$f":"IF(SUM(INDIRECT(\"Base!L2C\"&ROW()+1&\":L\"&COUNTA(Base!B:B)&\"C\"&ROW()+1,FALSE))>0,B4,\"\")","v":"Fonction 03"},{"$f":"IFERROR(INDEX(C$2:C$31,MATCH(SMALL(IF((COUNTIF(D$1:D3,C$2:C$31)=0)*(C$2:C$31<>\"\"),COUNTIF(C$2:C$31,\"<\"&C$2:C$31)),1),IF(C$2:C$31<>\"\",COUNTIF(C$2:C$31,\"<\"&C$2:C$31)),0)),\"\")","v":"Fonction 05"}]
["Service 04",{"$f":"Base!F$1","v":"Fonction 04"},{"$f":"IF(SUM(INDIRECT(\"Base!L2C\"&ROW()+1&\":L\"&COUNTA(Base!B:B)&\"C\"&ROW()+1,FALSE))>0,B5,\"\")","v":"Fonction 04"},{"$f":"IFERROR(INDEX(C$2:C$31,MATCH(SMALL(IF((COUNTIF(D$1:D4,C$2:C$31)=0)*(C$2:C$31<>\"\"),COUNTIF(C$2:C$31,\"<\"&C$2:C$31)),1),IF(C$2:C$31<>\"\",COUNTIF(C$2:C$31,\"<\"&C$2:C$31)),0)),\"\")","v":"Fonction 06"}]
["Service 05",{"$f":"Base!G$1","v":"Fonction 05"},{"$f":"IF(SUM(INDIRECT(\"Base!L2C\"&ROW()+1&\":L\"&COUNTA(Base!B:B)&\"C\"&ROW()+1,FALSE))>0,B6,\"\")","v":"Fonction 05"},{"$f":"IFERROR(INDEX(C$2:C$31,MATCH(SMALL(IF((COUNTIF(D$1:D5,C$2:C$31)=0)*(C$2:C$31<>\"\"),COUNTIF(C$2:C$31,\"<\"&C$2:C$31)),1),IF(C$2:C$31<>\"\",COUNTIF(C$2:C$31,\"<\"&C$2:C$31)),0)),\"\")","v":"Fonction 07"}]
["Service 06",{"$f":"Base!H$1","v":"Fonction 06"},{"$f":"IF(SUM(INDIRECT(\"Base!L2C\"&ROW()+1&\":L\"&COUNTA(Base!B:B)&\"C\"&ROW()+1,FALSE))>0,B7,\"\")","v":"Fonction 06"},{"$f":"IFERROR(INDEX(C$2:C$31,MATCH(SMALL(IF((COUNTIF(D$1:D6,C$2:C$31)=0)*(C$2:C$31<>\"\"),COUNTIF(C$2:C$31,\"<\"&C$2:C$31)),1),IF(C$2:C$31<>\"\",COUNTIF(C$2:C$31,\"<\"&C$2:C$31)),0)),\"\")","v":"Fonction 08"}]
["Service 07",{"$f":"Base!I$1","v":"Fonction 07"},{"$f":"IF(SUM(INDIRECT(\"Base!L2C\"&ROW()+1&\":L\"&COUNTA(Base!B:B)&\"C\"&ROW()+1,FALSE))>0,B8,\"\")","v":"Fonction 07"},{"$f":"IFERROR(INDEX(C$2:C$31,MATCH(SMALL(IF((COUNTIF(D$1:D7,C$2:C$31)=0)*(C$2:C$31<>\"\"),COUNTIF(C$2:C$31,\"<\"&C$2:C$31)),1),IF(C$2:C$31<>\"\",COUNTIF(C$2:C$31,\"<\"&C$2:C$31)),0)),\"\")","v":"Fonction 09"}]
["Service 08",{"$f":"Base!J$1","v":"Fonction 08"},{"$f":"IF(SUM(INDIRECT(\"Base!L2C\"&ROW()+1&\":L\"&COUNTA(Base!B:B)&\"C\"&ROW()+1,FALSE))>0,B9,\"\")","v":"Fonction 08"},{"$f":"IFERROR(INDEX(C$2:C$31,MATCH(SMALL(IF((COUNTIF(D$1:D8,C$2:C$31)=0)*(C$2:C$31<>\"\"),COUNTIF(C$2:C$31,\"<\"&C$2:C$31)),1),IF(C$2:C$31<>\"\",COUNTIF(C$2:C$31,\"<\"&C$2:C$31)),0)),\"\")","v":"Fonction 10"}]
["Service 09",{"$f":"Base!K$1","v":"Fonction 09"},{"$f":"IF(SUM(INDIRECT(\"Base!L2C\"&ROW()+1&\":L\"&COUNTA(Base!B:B)&\"C\"&ROW()+1,FALSE))>0,B10,\"\")","v":"Fonction 09"},{"$f":"IFERROR(INDEX(C$2:C$31,MATCH(SMALL(IF((COUNTIF(D$1:D9,C$2:C$31)=0)*(C$2:C$31<>\"\"),COUNTIF(C$2:C$31,\"<\"&C$2:C$31)),1),IF(C$2:C$31<>\"\",COUNTIF(C$2:C$31,\"<\"&C$2:C$31)),0)),\"\")","v":"Fonction 11"}]
["Service 10",{"$f":"Base!L$1","v":"Fonction 10"},{"$f":"IF(SUM(INDIRECT(\"Base!L2C\"&ROW()+1&\":L\"&COUNTA(Base!B:B)&\"C\"&ROW()+1,FALSE))>0,B11,\"\")","v":"Fonction 10"},{"$f":"IFERROR(INDEX(C$2:C$31,MATCH(SMALL(IF((COUNTIF(D$1:D10,C$2:C$31)=0)*(C$2:C$31<>\"\"),COUNTIF(C$2:C$31,\"<\"&C$2:C$31)),1),IF(C$2:C$31<>\"\",COUNTIF(C$2:C$31,\"<\"&C$2:C$31)),0)),\"\")","v":"Fonction 12"}]
["Service 11",{"$f":"Base!M$1","v":"Fonction 11"},{"$f":"IF(SUM(INDIRECT(\"Base!L2C\"&ROW()+1&\":L\"&COUNTA(Base!B:B)&\"C\"&ROW()+1,FALSE))>0,B12,\"\")","v":"Fonction 11"},{"$f":"IFERROR(INDEX(C$2:C$31,MATCH(SMALL(IF((COUNTIF(D$1:D11,C$2:C$31)=0)*(C$2:C$31<>\"\"),COUNTIF(C$2:C$31,\"<\"&C$2:C$31)),1),IF(C$2:C$31<>\"\",COUNTIF(C$2:C$31,\"<\"&C$2:C$31)),0)),\"\")","v":"Fonction 13"}]
["Service 12",{"$f":"Base!N$1","v":"Fonction 12"},{"$f":"IF(SUM(INDIRECT(\"Base!L2C\"&ROW()+1&\":L\"&COUNTA(Base!B:B)&\"C\"&ROW()+1,FALSE))>0,B13,\"\")","v":"Fonction 12"},{"$f":"IFERROR(INDEX(C$2:C$31,MATCH(SMALL(IF((COUNTIF(D$1:D12,C$2:C$31)=0)*(C$2:C$31<>\"\"),COUNTIF(C$2:C$31,\"<\"&C$2:C$31)),1),IF(C$2:C$31<>\"\",COUNTIF(C$2:C$31,\"<\"&C$2:C$31)),0)),\"\")","v":"Fonction 14"}]
["Service 13",{"$f":"Base!O$1","v":"Fonction 13"},{"$f":"IF(SUM(INDIRECT(\"Base!L2C\"&ROW()+1&\":L\"&COUNTA(Base!B:B)&\"C\"&ROW()+1,FALSE))>0,B14,\"\")","v":"Fonction 13"},{"$f":"IFERROR(INDEX(C$2:C$31,MATCH(SMALL(IF((COUNTIF(D$1:D13,C$2:C$31)=0)*(C$2:C$31<>\"\"),COUNTIF(C$2:C$31,\"<\"&C$2:C$31)),1),IF(C$2:C$31<>\"\",COUNTIF(C$2:C$31,\"<\"&C$2:C$31)),0)),\"\")","v":"Fonction 15"}]
["Service 14",{"$f":"Base!P$1","v":"Fonction 14"},{"$f":"IF(SUM(INDIRECT(\"Base!L2C\"&ROW()+1&\":L\"&COUNTA(Base!B:B)&\"C\"&ROW()+1,FALSE))>0,B15,\"\")","v":"Fonction 14"},{"$f":"IFERROR(INDEX(C$2:C$31,MATCH(SMALL(IF((COUNTIF(D$1:D14,C$2:C$31)=0)*(C$2:C$31<>\"\"),COUNTIF(C$2:C$31,\"<\"&C$2:C$31)),1),IF(C$2:C$31<>\"\",COUNTIF(C$2:C$31,\"<\"&C$2:C$31)),0)),\"\")","v":"Fonction 16"}]
["Service 15",{"$f":"Base!Q$1","v":"Fonction 15"},{"$f":"IF(SUM(INDIRECT(\"Base!L2C\"&ROW()+1&\":L\"&COUNTA(Base!B:B)&\"C\"&ROW()+1,FALSE))>0,B16,\"\")","v":"Fonction 15"},{"$f":"IFERROR(INDEX(C$2:C$31,MATCH(SMALL(IF((COUNTIF(D$1:D15,C$2:C$31)=0)*(C$2:C$31<>\"\"),COUNTIF(C$2:C$31,\"<\"&C$2:C$31)),1),IF(C$2:C$31<>\"\",COUNTIF(C$2:C$31,\"<\"&C$2:C$31)),0)),\"\")","v":"Fonction 17"}]
["Service 16",{"$f":"Base!R$1","v":"Fonction 16"},{"$f":"IF(SUM(INDIRECT(\"Base!L2C\"&ROW()+1&\":L\"&COUNTA(Base!B:B)&\"C\"&ROW()+1,FALSE))>0,B17,\"\")","v":"Fonction 16"},{"$f":"IFERROR(INDEX(C$2:C$31,MATCH(SMALL(IF((COUNTIF(D$1:D16,C$2:C$31)=0)*(C$2:C$31<>\"\"),COUNTIF(C$2:C$31,\"<\"&C$2:C$31)),1),IF(C$2:C$31<>\"\",COUNTIF(C$2:C$31,\"<\"&C$2:C$31)),0)),\"\")","v":"Fonction 18"}]
["Service 17",{"$f":"Base!S$1","v":"Fonction 17"},{"$f":"IF(SUM(INDIRECT(\"Base!L2C\"&ROW()+1&\":L\"&COUNTA(Base!B:B)&\"C\"&ROW()+1,FALSE))>0,B18,\"\")","v":"Fonction 17"},{"$f":"IFERROR(INDEX(C$2:C$31,MATCH(SMALL(IF((COUNTIF(D$1:D17,C$2:C$31)=0)*(C$2:C$31<>\"\"),COUNTIF(C$2:C$31,\"<\"&C$2:C$31)),1),IF(C$2:C$31<>\"\",COUNTIF(C$2:C$31,\"<\"&C$2:C$31)),0)),\"\")","v":"Fonction 19"}]
["Service 18",{"$f":"Base!T$1","v":"Fonction 18"},{"$f":"IF(SUM(INDIRECT(\"Base!L2C\"&ROW()+1&\":L\"&COUNTA(Base!B:B)&\"C\"&ROW()+1,FALSE))>0,B19,\"\")","v":"Fonction 18"},{"$f":"IFERROR(INDEX(C$2:C$31,MATCH(SMALL(IF((COUNTIF(D$1:D18,C$2:C$31)=0)*(C$2:C$31<>\"\"),COUNTIF(C$2:C$31,\"<\"&C$2:C$31)),1),IF(C$2:C$31<>\"\",COUNTIF(C$2:C$31,\"<\"&C$2:C$31)),0)),\"\")","v":"Fonction 20"}]
["Service 19",{"$f":"Base!U$1","v":"Fonction 19"},{"$f":"IF(SUM(INDIRECT(\"Base!L2C\"&ROW()+1&\":L\"&COUNTA(Base!B:B)&\"C\"&ROW()+1,FALSE))>0,B20,\"\")","v":"Fonction 19"},{"$f":"IFERROR(INDEX(C$2:C$31,MATCH(SMALL(IF((COUNTIF(D$1:D19,C$2:C$31)=0)*(C$2:C$31<>\"\"),COUNTIF(C$2:C$31,\"<\"&C$2:C$31)),1),IF(C$2:C$31<>\"\",COUNTIF(C$2:C$31,\"<\"&C$2:C$31)),0)),\"\")","v":"Fonction 21"}]
["Service 20",{"$f":"Base!V$1","v":"Fonction 20"},{"$f":"IF(SUM(INDIRECT(\"Base!L2C\"&ROW()+1&\":L\"&COUNTA(Base!B:B)&\"C\"&ROW()+1,FALSE))>0,B21,\"\")","v":"Fonction 20"},{"$f":"IFERROR(INDEX(C$2:C$31,MATCH(SMALL(IF((COUNTIF(D$1:D20,C$2:C$31)=0)*(C$2:C$31<>\"\"),COUNTIF(C$2:C$31,\"<\"&C$2:C$31)),1),IF(C$2:C$31<>\"\",COUNTIF(C$2:C$31,\"<\"&C$2:C$31)),0)),\"\")","v":"Fonction 22"}]
["Service 21",{"$f":"Base!W$1","v":"Fonction 21"},{"$f":"IF(SUM(INDIRECT(\"Base!L2C\"&ROW()+1&\":L\"&COUNTA(Base!B:B)&\"C\"&ROW()+1,FALSE))>0,B22,\"\")","v":"Fonction 21"},{"$f":"IFERROR(INDEX(C$2:C$31,MATCH(SMALL(IF((COUNTIF(D$1:D21,C$2:C$31)=0)*(C$2:C$31<>\"\"),COUNTIF(C$2:C$31,\"<\"&C$2:C$31)),1),IF(C$2:C$31<>\"\",COUNTIF(C$2:C$31,\"<\"&C$2:C$31)),0)),\"\")","v":"Fonction 23"}]
[null,{"$f":"Base!X$1","v":"Fonction 22"},{"$f":"IF(SUM(INDIRECT(\"Base!L2C\"&ROW()+1&\":L\"&COUNTA(Base!B:B)&\"C\"&ROW()+1,FALSE))>0,B23,\"\")","v":"Fonction 22"},{"$f":"IFERROR(INDEX(C$2:C$31,MATCH(SMALL(IF((COUNTIF(D$1:D22,C$2:C$31)=0)*(C$2:C$31<>\"\"),COUNTIF(C$2:C$31,\"<\"&C$2:C$31)),1),IF(C$2:C$31<>\"\",COUNTIF(C$2:C$31,\"<\"&C$2:C$31)),0)),\"\")","v":"Fonction 24"}]
[null,{"$f":"Base!Y$1","v":"Fonction 23"},{"$f":"IF(SUM(INDIRECT(\"Base!L2C\"&ROW()+1&\":L\"&COUNTA(Base!B:B)&\"C\"&ROW()+1,FALSE))>0,B24,\"\")","v":"Fonction 23"},{"$f":"IFERROR(INDEX(C$2:C$31,MATCH(SMALL(IF((COUNTIF(D$1:D23,C$2:C$31)=0)*(C$2:C$31<>\"\"),COUNTIF(C$2:C$31,\"<\"&C$2:C$31)),1),IF(C$2:C$31<>\"\",COUNTIF(C$2:C$31,\"<\"&C$2:C$31)),0)),\"\")","v":"Fonction 25"}]
[null,{"$f":"Base!Z$1","v":"Fonction 24"},{"$f":"IF(SUM(INDIRECT(\"Base!L2C\"&ROW()+1&\":L\"&COUNTA(Base!B:B)&\"C\"&ROW()+1,FALSE))>0,B25,\"\")","v":"Fonction 24"},{"$f":"IFERROR(INDEX(C$2:C$31,MATCH(SMALL(IF((COUNTIF(D$1:D24,C$2:C$31)=0)*(C$2:C$31<>\"\"),COUNTIF(C$2:C$31,\"<\"&C$2:C$31)),1),IF(C$2:C$31<>\"\",COUNTIF(C$2:C$31,\"<\"&C$2:C$31)),0)),\"\")","v":"Fonction 26"}]
[null,{"$f":"Base!AA$1","v":"Fonction 25"},{"$f":"IF(SUM(INDIRECT(\"Base!L2C\"&ROW()+1&\":L\"&COUNTA(Base!B:B)&\"C\"&ROW()+1,FALSE))>0,B26,\"\")","v":"Fonction 25"},{"$f":"IFERROR(INDEX(C$2:C$31,MATCH(SMALL(IF((COUNTIF(D$1:D25,C$2:C$31)=0)*(C$2:C$31<>\"\"),COUNTIF(C$2:C$31,\"<\"&C$2:C$31)),1),IF(C$2:C$31<>\"\",COUNTIF(C$2:C$31,\"<\"&C$2:C$31)),0)),\"\")","v":"Fonction 27"}]
[null,{"$f":"Base!AB$1","v":"Fonction 26"},{"$f":"IF(SUM(INDIRECT(\"Base!L2C\"&ROW()+1&\":L\"&COUNTA(Base!B:B)&\"C\"&ROW()+1,FALSE))>0,B27,\"\")","v":"Fonction 26"},{"$f":"IFERROR(INDEX(C$2:C$31,MATCH(SMALL(IF((COUNTIF(D$1:D26,C$2:C$31)=0)*(C$2:C$31<>\"\"),COUNTIF(C$2:C$31,\"<\"&C$2:C$31)),1),IF(C$2:C$31<>\"\",COUNTIF(C$2:C$31,\"<\"&C$2:C$31)),0)),\"\")","v":"Fonction 28"}]
[null,{"$f":"Base!AC$1","v":"Fonction 27"},{"$f":"IF(SUM(INDIRECT(\"Base!L2C\"&ROW()+1&\":L\"&COUNTA(Base!B:B)&\"C\"&ROW()+1,FALSE))>0,B28,\"\")","v":"Fonction 27"},{"$f":"IFERROR(INDEX(C$2:C$31,MATCH(SMALL(IF((COUNTIF(D$1:D27,C$2:C$31)=0)*(C$2:C$31<>\"\"),COUNTIF(C$2:C$31,\"<\"&C$2:C$31)),1),IF(C$2:C$31<>\"\",COUNTIF(C$2:C$31,\"<\"&C$2:C$31)),0)),\"\")","v":"Fonction 29"}]
[null,{"$f":"Base!AD$1","v":"Fonction 28"},{"$f":"IF(SUM(INDIRECT(\"Base!L2C\"&ROW()+1&\":L\"&COUNTA(Base!B:B)&\"C\"&ROW()+1,FALSE))>0,B29,\"\")","v":"Fonction 28"},{"$f":"IFERROR(INDEX(C$2:C$31,MATCH(SMALL(IF((COUNTIF(D$1:D28,C$2:C$31)=0)*(C$2:C$31<>\"\"),COUNTIF(C$2:C$31,\"<\"&C$2:C$31)),1),IF(C$2:C$31<>\"\",COUNTIF(C$2:C$31,\"<\"&C$2:C$31)),0)),\"\")","v":"Fonction 30"}]
[null,{"$f":"Base!AE$1","v":"Fonction 29"},{"$f":"IF(SUM(INDIRECT(\"Base!L2C\"&ROW()+1&\":L\"&COUNTA(Base!B:B)&\"C\"&ROW()+1,FALSE))>0,B30,\"\")","v":"Fonction 29"},{"$f":"IFERROR(INDEX(C$2:C$31,MATCH(SMALL(IF((COUNTIF(D$1:D29,C$2:C$31)=0)*(C$2:C$31<>\"\"),COUNTIF(C$2:C$31,\"<\"&C$2:C$31)),1),IF(C$2:C$31<>\"\",COUNTIF(C$2:C$31,\"<\"&C$2:C$31)),0)),\"\")","v":"LouReeD 01"}]
[null,{"$f":"Base!AF$1","v":"Fonction 30"},{"$f":"IF(SUM(INDIRECT(\"Base!L2C\"&ROW()+1&\":L\"&COUNTA(Base!B:B)&\"C\"&ROW()+1,FALSE))>0,B31,\"\")","v":"Fonction 30"},{"$f":"IFERROR(INDEX(C$2:C$31,MATCH(SMALL(IF((COUNTIF(D$1:D30,C$2:C$31)=0)*(C$2:C$31<>\"\"),COUNTIF(C$2:C$31,\"<\"&C$2:C$31)),1),IF(C$2:C$31<>\"\",COUNTIF(C$2:C$31,\"<\"&C$2:C$31)),0)),\"\")","v":"LouReeD 02"}]

{"sheet":"Scan","index":4,"n_rows":1,"n_cols":14,"rows_kept":1,"cut":false,"hidden":false,"merged":[[0,0,0,7]]}
["Liste des opérations",null,null,null,null,null,null,null,"Nom Prénom","Service","Date de la dernière exécution","Validité\nen mois","Date de péremption","Date initiale\nou\ninformation complémentaire"]

{"sheet":"Accueil","index":5,"n_rows":8,"n_cols":24,"rows_kept":8,"cut":false,"hidden":false,"merged":[[0,0,0,1],[1,0,1,1],[2,0,2,1],[3,0,3,1],[4,0,4,1]]}
[null,null,null,null,{"$f":"\"Mise en forme chromatique pour une situation au : \"&TEXT(ce_jour_calculé,\"jj/mm/aaaa\")&\", avec \"&nb_personnels&IF(nb_personnels>1,\" personnels suivis\",\" personnel suivi\")","v":"Mise en forme chromatique pour une situation au : 15/07/2019, avec 1 personnel suivi"}]
["Nombre de personnel formé",null,{"$f":"SUM(D2:X2)","v":0},{"$f":"IF(SUM(COUNTIF(D$7:D8,\"Valide\"),COUNTIF(D$7:D8,\"En limite\"),COUNTIF(D$7:D8,\"Non valide\"))=0,\"\",SUM(COUNTIF(D$7:D8,\"Valide\"),COUNTIF(D$7:D8,\"En limite\"),COUNTIF(D$7:D8,\"Non valide\")))","v":""},{"$f":"IF(SUM(COUNTIF(E$7:E8,\"Valide\"),COUNTIF(E$7:E8,\"En limite\"),COUNTIF(E$7:E8,\"Non valide\"))=0,\"\",SUM(COUNTIF(E$7:E8,\"Valide\"),COUNTIF(E$7:E8,\"En limite\"),COUNTIF(E$7:E8,\"Non valide\")))","v":""},{"$f":"IF(SUM(COUNTIF(F$7:F8,\"Valide\"),COUNTIF(F$7:F8,\"En limite\"),COUNTIF(F$7:F8,\"Non valide\"))=0,\"\",SUM(COUNTIF(F$7:F8,\"Valide\"),COUNTIF(F$7:F8,\"En limite\"),COUNTIF(F$7:F8,\"Non valide\")))","v":""},{"$f":"IF(SUM(COUNTIF(G$7:G8,\"Valide\"),COUNTIF(G$7:G8,\"En limite\"),COUNTIF(G$7:G8,\"Non valide\"))=0,\"\",SUM(COUNTIF(G$7:G8,\"Valide\"),COUNTIF(G$7:G8,\"En limite\"),COUNTIF(G$7:G8,\"Non valide\")))","v":""},{"$f":"IF(SUM(COUNTIF(H$7:H8,\"Valide\"),COUNTIF(H$7:H8,\"En limite\"),COUNTIF(H$7:H8,\"Non valide\"))=0,\"\",SUM(COUNTIF(H$7:H8,\"Valide\"),COUNTIF(H$7:H8,\"En limite\"),COUNTIF(H$7:H8,\"Non valide\")))","v":""},{"$f":"IF(SUM(COUNTIF(I$7:I8,\"Valide\"),COUNTIF(I$7:I8,\"En limite\"),COUNTIF(I$7:I8,\"Non valide\"))=0,\"\",SUM(COUNTIF(I$7:I8,\"Valide\"),COUNTIF(I$7:I8,\"En limite\"),COUNTIF(I$7:I8,\"Non valide\")))","v":""},{"$f":"IF(SUM(COUNTIF(J$7:J8,\"Valide\"),COUNTIF(J$7:J8,\"En limite\"),COUNTIF(J$7:J8,\"Non valide\"))=0,\"\",SUM(COUNTIF(J$7:J8,\"Valide\"),COUNTIF(J$7:J8,\"En limite\"),COUNTIF(J$7:J8,\"Non valide\")))","v":""},{"$f":"IF(SUM(COUNTIF(K$7:K8,\"Valide\"),COUNTIF(K$7:K8,\"En limite\"),COUNTIF(K$7:K8,\"Non valide\"))=0,\"\",SUM(COUNTIF(K$7:K8,\"Valide\"),COUNTIF(K$7:K8,\"En limite\"),COUNTIF(K$7:K8,\"Non valide\")))","v":""},{"$f":"IF(SUM(COUNTIF(L$7:L8,\"Valide\"),COUNTIF(L$7:L8,\"En limite\"),COUNTIF(L$7:L8,\"Non valide\"))=0,\"\",SUM(COUNTIF(L$7:L8,\"Valide\"),COUNTIF(L$7:L8,\"En limite\"),COUNTIF(L$7:L8,\"Non valide\")))","v":""},{"$f":"IF(SUM(COUNTIF(M$7:M8,\"Valide\"),COUNTIF(M$7:M8,\"En limite\"),COUNTIF(M$7:M8,\"Non valide\"))=0,\"\",SUM(COUNTIF(M$7:M8,\"Valide\"),COUNTIF(M$7:M8,\"En limite\"),COUNTIF(M$7:M8,\"Non valide\")))","v":""},{"$f":"IF(SUM(COUNTIF(N$7:N8,\"Valide\"),COUNTIF(N$7:N8,\"En limite\"),COUNTIF(N$7:N8,\"Non valide\"))=0,\"\",SUM(COUNTIF(N$7:N8,\"Valide\"),COUNTIF(N$7:N8,\"En limite\"),COUNTIF(N$7:N8,\"Non valide\")))","v":""},{"$f":"IF(SUM(COUNTIF(O$7:O8,\"Valide\"),COUNTIF(O$7:O8,\"En limite\"),COUNTIF(O$7:O8,\"Non valide\"))=0,\"\",SUM(COUNTIF(O$7:O8,\"Valide\"),COUNTIF(O$7:O8,\"En limite\"),COUNTIF(O$7:O8,\"Non valide\")))","v":""},{"$f":"IF(SUM(COUNTIF(P$7:P8,\"Valide\"),COUNTIF(P$7:P8,\"En limite\"),COUNTIF(P$7:P8,\"Non valide\"))=0,\"\",SUM(COUNTIF(P$7:P8,\"Valide\"),COUNTIF(P$7:P8,\"En limite\"),COUNTIF(P$7:P8,\"Non valide\")))","v":""},{"$f":"IF(SUM(COUNTIF(Q$7:Q8,\"Valide\"),COUNTIF(Q$7:Q8,\"En limite\"),COUNTIF(Q$7:Q8,\"Non valide\"))=0,\"\",SUM(COUNTIF(Q$7:Q8,\"Valide\"),COUNTIF(Q$7:Q8,\"En limite\"),COUNTIF(Q$7:Q8,\"Non valide\")))","v":""},{"$f":"IF(SUM(COUNTIF(R$7:R8,\"Valide\"),COUNTIF(R$7:R8,\"En limite\"),COUNTIF(R$7:R8,\"Non valide\"))=0,\"\",SUM(COUNTIF(R$7:R8,\"Valide\"),COUNTIF(R$7:R8,\"En limite\"),COUNTIF(R$7:R8,\"Non valide\")))","v":""},{"$f":"IF(SUM(COUNTIF(S$7:S8,\"Valide\"),COUNTIF(S$7:S8,\"En limite\"),COUNTIF(S$7:S8,\"Non valide\"))=0,\"\",SUM(COUNTIF(S$7:S8,\"Valide\"),COUNTIF(S$7:S8,\"En limite\"),COUNTIF(S$7:S8,\"Non valide\")))","v":""},{"$f":"IF(SUM(COUNTIF(T$7:T8,\"Valide\"),COUNTIF(T$7:T8,\"En limite\"),COUNTIF(T$7:T8,\"Non valide\"))=0,\"\",SUM(COUNTIF(T$7:T8,\"Valide\"),COUNTIF(T$7:T8,\"En limite\"),COUNTIF(T$7:T8,\"Non valide\")))","v":""},{"$f":"IF(SUM(COUNTIF(U$7:U8,\"Valide\"),COUNTIF(U$7:U8,\"En limite\"),COUNTIF(U$7:U8,\"Non valide\"))=0,\"\",SUM(COUNTIF(U$7:U8,\"Valide\"),COUNTIF(U$7:U8,\"En limite\"),COUNTIF(U$7:U8,\"Non valide\")))","v":""},{"$f":"IF(SUM(COUNTIF(V$7:V8,\"Valide\"),COUNTIF(V$7:V8,\"En limite\"),COUNTIF(V$7:V8,\"Non valide\"))=0,\"\",SUM(COUNTIF(V$7:V8,\"Valide\"),COUNTIF(V$7:V8,\"En limite\"),COUNTIF(V$7:V8,\"Non valide\")))","v":""},{"$f":"IF(SUM(COUNTIF(W$7:W8,\"Valide\"),COUNTIF(W$7:W8,\"En limite\"),COUNTIF(W$7:W8,\"Non valide\"))=0,\"\",SUM(COUNTIF(W$7:W8,\"Valide\"),COUNTIF(W$7:W8,\"En limite\"),COUNTIF(W$7:W8,\"Non valide\")))","v":""},{"$f":"IF(SUM(COUNTIF(X$7:X8,\"Valide\"),COUNTIF(X$7:X8,\"En limite\"),COUNTIF(X$7:X8,\"Non valide\"))=0,\"\",SUM(COUNTIF(X$7:X8,\"Valide\"),COUNTIF(X$7:X8,\"En limite\"),COUNTIF(X$7:X8,\"Non valide\")))","v":""}]
["Nombre de formation valide",null,{"$f":"SUM(D3:X3)","v":0},{"$f":"IF(SUM(COUNTIF(D$7:D8,\"En limite\"),COUNTIF(D$7:D8,\"Valide\"))=0,\"\",SUM(COUNTIF(D$7:D8,\"En limite\"),COUNTIF(D$7:D8,\"Valide\")))","v":""},{"$f":"IF(SUM(COUNTIF(E$7:E8,\"En limite\"),COUNTIF(E$7:E8,\"Valide\"))=0,\"\",SUM(COUNTIF(E$7:E8,\"En limite\"),COUNTIF(E$7:E8,\"Valide\")))","v":""},{"$f":"IF(SUM(COUNTIF(F$7:F8,\"En limite\"),COUNTIF(F$7:F8,\"Valide\"))=0,\"\",SUM(COUNTIF(F$7:F8,\"En limite\"),COUNTIF(F$7:F8,\"Valide\")))","v":""},{"$f":"IF(SUM(COUNTIF(G$7:G8,\"En limite\"),COUNTIF(G$7:G8,\"Valide\"))=0,\"\",SUM(COUNTIF(G$7:G8,\"En limite\"),COUNTIF(G$7:G8,\"Valide\")))","v":""},{"$f":"IF(SUM(COUNTIF(H$7:H8,\"En limite\"),COUNTIF(H$7:H8,\"Valide\"))=0,\"\",SUM(COUNTIF(H$7:H8,\"En limite\"),COUNTIF(H$7:H8,\"Valide\")))","v":""},{"$f":"IF(SUM(COUNTIF(I$7:I8,\"En limite\"),COUNTIF(I$7:I8,\"Valide\"))=0,\"\",SUM(COUNTIF(I$7:I8,\"En limite\"),COUNTIF(I$7:I8,\"Valide\")))","v":""},{"$f":"IF(SUM(COUNTIF(J$7:J8,\"En limite\"),COUNTIF(J$7:J8,\"Valide\"))=0,\"\",SUM(COUNTIF(J$7:J8,\"En limite\"),COUNTIF(J$7:J8,\"Valide\")))","v":""},{"$f":"IF(SUM(COUNTIF(K$7:K8,\"En limite\"),COUNTIF(K$7:K8,\"Valide\"))=0,\"\",SUM(COUNTIF(K$7:K8,\"En limite\"),COUNTIF(K$7:K8,\"Valide\")))","v":""},{"$f":"IF(SUM(COUNTIF(L$7:L8,\"En limite\"),COUNTIF(L$7:L8,\"Valide\"))=0,\"\",SUM(COUNTIF(L$7:L8,\"En limite\"),COUNTIF(L$7:L8,\"Valide\")))","v":""},{"$f":"IF(SUM(COUNTIF(M$7:M8,\"En limite\"),COUNTIF(M$7:M8,\"Valide\"))=0,\"\",SUM(COUNTIF(M$7:M8,\"En limite\"),COUNTIF(M$7:M8,\"Valide\")))","v":""},{"$f":"IF(SUM(COUNTIF(N$7:N8,\"En limite\"),COUNTIF(N$7:N8,\"Valide\"))=0,\"\",SUM(COUNTIF(N$7:N8,\"En limite\"),COUNTIF(N$7:N8,\"Valide\")))","v":""},{"$f":"IF(SUM(COUNTIF(O$7:O8,\"En limite\"),COUNTIF(O$7:O8,\"Valide\"))=0,\"\",SUM(COUNTIF(O$7:O8,\"En limite\"),COUNTIF(O$7:O8,\"Valide\")))","v":""},{"$f":"IF(SUM(COUNTIF(P$7:P8,\"En limite\"),COUNTIF(P$7:P8,\"Valide\"))=0,\"\",SUM(COUNTIF(P$7:P8,\"En limite\"),COUNTIF(P$7:P8,\"Valide\")))","v":""},{"$f":"IF(SUM(COUNTIF(Q$7:Q8,\"En limite\"),COUNTIF(Q$7:Q8,\"Valide\"))=0,\"\",SUM(COUNTIF(Q$7:Q8,\"En limite\"),COUNTIF(Q$7:Q8,\"Valide\")))","v":""},{"$f":"IF(SUM(COUNTIF(R$7:R8,\"En limite\"),COUNTIF(R$7:R8,\"Valide\"))=0,\"\",SUM(COUNTIF(R$7:R8,\"En limite\"),COUNTIF(R$7:R8,\"Valide\")))","v":""},{"$f":"IF(SUM(COUNTIF(S$7:S8,\"En limite\"),COUNTIF(S$7:S8,\"Valide\"))=0,\"\",SUM(COUNTIF(S$7:S8,\"En limite\"),COUNTIF(S$7:S8,\"Valide\")))","v":""},{"$f":"IF(SUM(COUNTIF(T$7:T8,\"En limite\"),COUNTIF(T$7:T8,\"Valide\"))=0,\"\",SUM(COUNTIF(T$7:T8,\"En limite\"),COUNTIF(T$7:T8,\"Valide\")))","v":""},{"$f":"IF(SUM(COUNTIF(U$7:U8,\"En limite\"),COUNTIF(U$7:U8,\"Valide\"))=0,\"\",SUM(COUNTIF(U$7:U8,\"En limite\"),COUNTIF(U$7:U8,\"Valide\")))","v":""},{"$f":"IF(SUM(COUNTIF(V$7:V8,\"En limite\"),COUNTIF(V$7:V8,\"Valide\"))=0,\"\",SUM(COUNTIF(V$7:V8,\"En limite\"),COUNTIF(V$7:V8,\"Valide\")))","v":""},{"$f":"IF(SUM(COUNTIF(W$7:W8,\"En limite\"),COUNTIF(W$7:W8,\"Valide\"))=0,\"\",SUM(COUNTIF(W$7:W8,\"En limite\"),COUNTIF(W$7:W8,\"Valide\")))","v":""},{"$f":"IF(SUM(COUNTIF(X$7:X8,\"En limite\"),COUNTIF(X$7:X8,\"Valide\"))=0,\"\",SUM(COUNTIF(X$7:X8,\"En limite\"),COUNTIF(X$7:X8,\"Valide\")))","v":""}]
["Nombre de formation non valide",null,{"$f":"SUM(D4:X4)","v":0},{"$f":"IF(SUM(COUNTIF(D$7:D8,\"Non valide\"))=0,\"\",SUM(COUNTIF(D$7:D8,\"Non valide\")))","v":""},{"$f":"IF(SUM(COUNTIF(E$7:E8,\"Non valide\"))=0,\"\",SUM(COUNTIF(E$7:E8,\"Non valide\")))","v":""},{"$f":"IF(SUM(COUNTIF(F$7:F8,\"Non valide\"))=0,\"\",SUM(COUNTIF(F$7:F8,\"Non valide\")))","v":""},{"$f":"IF(SUM(COUNTIF(G$7:G8,\"Non valide\"))=0,\"\",SUM(COUNTIF(G$7:G8,\"Non valide\")))","v":""},{"$f":"IF(SUM(COUNTIF(H$7:H8,\"Non valide\"))=0,\"\",SUM(COUNTIF(H$7:H8,\"Non valide\")))","v":""},{"$f":"IF(SUM(COUNTIF(I$7:I8,\"Non valide\"))=0,\"\",SUM(COUNTIF(I$7:I8,\"Non valide\")))","v":""},{"$f":"IF(SUM(COUNTIF(J$7:J8,\"Non valide\"))=0,\"\",SUM(COUNTIF(J$7:J8,\"Non valide\")))","v":""},{"$f":"IF(SUM(COUNTIF(K$7:K8,\"Non valide\"))=0,\"\",SUM(COUNTIF(K$7:K8,\"Non valide\")))","v":""},{"$f":"IF(SUM(COUNTIF(L$7:L8,\"Non valide\"))=0,\"\",SUM(COUNTIF(L$7:L8,\"Non valide\")))","v":""},{"$f":"IF(SUM(COUNTIF(M$7:M8,\"Non valide\"))=0,\"\",SUM(COUNTIF(M$7:M8,\"Non valide\")))","v":""},{"$f":"IF(SUM(COUNTIF(N$7:N8,\"Non valide\"))=0,\"\",SUM(COUNTIF(N$7:N8,\"Non valide\")))","v":""},{"$f":"IF(SUM(COUNTIF(O$7:O8,\"Non valide\"))=0,\"\",SUM(COUNTIF(O$7:O8,\"Non valide\")))","v":""},{"$f":"IF(SUM(COUNTIF(P$7:P8,\"Non valide\"))=0,\"\",SUM(COUNTIF(P$7:P8,\"Non valide\")))","v":""},{"$f":"IF(SUM(COUNTIF(Q$7:Q8,\"Non valide\"))=0,\"\",SUM(COUNTIF(Q$7:Q8,\"Non valide\")))","v":""},{"$f":"IF(SUM(COUNTIF(R$7:R8,\"Non valide\"))=0,\"\",SUM(COUNTIF(R$7:R8,\"Non valide\")))","v":""},{"$f":"IF(SUM(COUNTIF(S$7:S8,\"Non valide\"))=0,\"\",SUM(COUNTIF(S$7:S8,\"Non valide\")))","v":""},{"$f":"IF(SUM(COUNTIF(T$7:T8,\"Non valide\"))=0,\"\",SUM(COUNTIF(T$7:T8,\"Non valide\")))","v":""},{"$f":"IF(SUM(COUNTIF(U$7:U8,\"Non valide\"))=0,\"\",SUM(COUNTIF(U$7:U8,\"Non valide\")))","v":""},{"$f":"IF(SUM(COUNTIF(V$7:V8,\"Non valide\"))=0,\"\",SUM(COUNTIF(V$7:V8,\"Non valide\")))","v":""},{"$f":"IF(SUM(COUNTIF(W$7:W8,\"Non valide\"))=0,\"\",SUM(COUNTIF(W$7:W8,\"Non valide\")))","v":""},{"$f":"IF(SUM(COUNTIF(X$7:X8,\"Non valide\"))=0,\"\",SUM(COUNTIF(X$7:X8,\"Non valide\")))","v":""}]
["Nombre de formation en cours",null,{"$f":"SUM(D5:X5)","v":2},{"$f":"IF(SUM(COUNTIF(D$7:D8,\"En cours\"))=0,\"\",SUM(COUNTIF(D$7:D8,\"En cours\")))","v":""},{"$f":"IF(SUM(COUNTIF(E$7:E8,\"En cours\"))=0,\"\",SUM(COUNTIF(E$7:E8,\"En cours\")))","v":""},{"$f":"IF(SUM(COUNTIF(F$7:F8,\"En cours\"))=0,\"\",SUM(COUNTIF(F$7:F8,\"En cours\")))","v":1},{"$f":"IF(SUM(COUNTIF(G$7:G8,\"En cours\"))=0,\"\",SUM(COUNTIF(G$7:G8,\"En cours\")))","v":""},{"$f":"IF(SUM(COUNTIF(H$7:H8,\"En cours\"))=0,\"\",SUM(COUNTIF(H$7:H8,\"En cours\")))","v":1},{"$f":"IF(SUM(COUNTIF(I$7:I8,\"En cours\"))=0,\"\",SUM(COUNTIF(I$7:I8,\"En cours\")))","v":""},{"$f":"IF(SUM(COUNTIF(J$7:J8,\"En cours\"))=0,\"\",SUM(COUNTIF(J$7:J8,\"En cours\")))","v":""},{"$f":"IF(SUM(COUNTIF(K$7:K8,\"En cours\"))=0,\"\",SUM(COUNTIF(K$7:K8,\"En cours\")))","v":""},{"$f":"IF(SUM(COUNTIF(L$7:L8,\"En cours\"))=0,\"\",SUM(COUNTIF(L$7:L8,\"En cours\")))","v":""},{"$f":"IF(SUM(COUNTIF(M$7:M8,\"En cours\"))=0,\"\",SUM(COUNTIF(M$7:M8,\"En cours\")))","v":""},{"$f":"IF(SUM(COUNTIF(N$7:N8,\"En cours\"))=0,\"\",SUM(COUNTIF(N$7:N8,\"En cours\")))","v":""},{"$f":"IF(SUM(COUNTIF(O$7:O8,\"En cours\"))=0,\"\",SUM(COUNTIF(O$7:O8,\"En cours\")))","v":""},{"$f":"IF(SUM(COUNTIF(P$7:P8,\"En cours\"))=0,\"\",SUM(COUNTIF(P$7:P8,\"En cours\")))","v":""},{"$f":"IF(SUM(COUNTIF(Q$7:Q8,\"En cours\"))=0,\"\",SUM(COUNTIF(Q$7:Q8,\"En cours\")))","v":""},{"$f":"IF(SUM(COUNTIF(R$7:R8,\"En cours\"))=0,\"\",SUM(COUNTIF(R$7:R8,\"En cours\")))","v":""},{"$f":"IF(SUM(COUNTIF(S$7:S8,\"En cours\"))=0,\"\",SUM(COUNTIF(S$7:S8,\"En cours\")))","v":""},{"$f":"IF(SUM(COUNTIF(T$7:T8,\"En cours\"))=0,\"\",SUM(COUNTIF(T$7:T8,\"En cours\")))","v":""},{"$f":"IF(SUM(COUNTIF(U$7:U8,\"En cours\"))=0,\"\",SUM(COUNTIF(U$7:U8,\"En cours\")))","v":""},{"$f":"IF(SUM(COUNTIF(V$7:V8,\"En cours\"))=0,\"\",SUM(COUNTIF(V$7:V8,\"En cours\")))","v":""},{"$f":"IF(SUM(COUNTIF(W$7:W8,\"En cours\"))=0,\"\",SUM(COUNTIF(W$7:W8,\"En cours\")))","v":""},{"$f":"IF(SUM(COUNTIF(X$7:X8,\"En cours\"))=0,\"\",SUM(COUNTIF(X$7:X8,\"En cours\")))","v":""}]
["Personnels",8,{"$f":"IF(SUM(INDIRECT(\"C\"&tête_récap&\":C\"&nb_personnels+tête_récap))/nb_personnels=0,\"Non débutée\",SUM(INDIRECT(\"C\"&tête_récap&\":C\"&nb_personnels+tête_récap))/nb_personnels)","v":"Non débutée"},"Thème 1",null,null,"Thème 2",null,null,"Thème 3",null,"Thème 4",null,null,null,null,null,null,"Thème 5"]
["Nom_Prénom\n ","Service","global\n\nINDICATEURS\n\nindividuel",{"$f":"Base!C1","v":"LouReeD 01"},{"$f":"Base!D1","v":"LouReeD 02"},{"$f":"Base!E1","v":"Fonction 03"},{"$f":"Base!F1","v":"Fonction 04"},{"$f":"Base!G1","v":"Fonction 05"},{"$f":"Base!H1","v":"Fonction 06"},{"$f":"Base!I1","v":"Fonction 07"},{"$f":"Base!J1","v":"Fonction 08"},{"$f":"Base!K1","v":"Fonction 09"},{"$f":"Base!L1","v":"Fonction 10"},{"$f":"Base!M1","v":"Fonction 11"},{"$f":"Base!N1","v":"Fonction 12"},{"$f":"Base!O1","v":"Fonction 13"},{"$f":"Base!P1","v":"Fonction 14"},{"$f":"Base!Q1","v":"Fonction 15"},{"$f":"Base!R1","v":"Fonction 16"},{"$f":"Base!S1","v":"Fonction 17"},{"$f":"Base!T1","v":"Fonction 18"},{"$f":"Base!U1","v":"Fonction 19"},{"$f":"Base!V1","v":"Fonction 20"},{"$f":"Base!W1","v":"Fonction 21"}]
["LouReeD",{"$f":"IF(INDIRECT(\"'\"&$A8&\"'!\"&adresse_atelier_personnel)=0,\"\",INDIRECT(\"'\"&$A8&\"'!\"&adresse_atelier_personnel))","v":""},{"$f":"INDIRECT(\"'\"&A8&\"'!AL\"&décalage+1)","v":"Non débutée"},{"$f":"IF(SUMPRODUCT((INDIRECT(\"'\"&$A8&\"'!E1:M1\")=D$7)*1)>0,HLOOKUP(D$7,INDIRECT(\"'\"&$A8&\"'!E1:M2\"),2,FALSE),\"\")&IF(SUMPRODUCT((INDIRECT(\"'\"&$A8&\"'!E4:M4\")=D$7)*1)>0,HLOOKUP(D$7,INDIRECT(\"'\"&$A8&\"'!E4:M5\"),2,FALSE),\"\")","v":""},"","En cours","","En cours","","","","","","","","","","","","","","","",""]

{"sheet":"Vierge","index":6,"n_rows":20,"n_cols":38,"rows_kept":20,"cut":false,"hidden":false,"merged":[[5,31,5,35],[3,1,3,2],[0,0,0,2],[6,0,6,8],[1,1,1,2],[2,1,2,2],[4,1,4,2],[5,1,5,2]]}
[null,null,null,"Fonction"]
["Situation au",{"$f":"ce_jour_calculé","v":"2019-07-15"},null,"Etat",{"$f":"IF(E1<>\"\",IF(OR($F3=Unique,$G3=Unique,$H3=Unique,$I3=Unique,$J3=Unique,$K3=Unique,$L3=Unique,$M3=Unique,$E6=Unique,$F6=Unique,$G6=Unique,$H6=Unique,$I6=Unique,$J6=Unique,$K6=Unique,$L6=Unique,$M6=Unique),\"\",IF(N17=TRUE,IF(N19=FALSE,\"Non valide\",IF(N20>0,\"En limite\",\"Valide\")),\"En cours\")),\"\")","v":""},{"$f":"IF(F1<>\"\",IF(OR($E3=Unique,$G3=Unique,$H3=Unique,$I3=Unique,$J3=Unique,$K3=Unique,$L3=Unique,$M3=Unique,$E6=Unique,$F6=Unique,$G6=Unique,$H6=Unique,$I6=Unique,$J6=Unique,$K6=Unique,$L6=Unique,$M6=Unique),\"\",IF(O17=TRUE,IF(O19=FALSE,\"Non valide\",IF(O20>0,\"En limite\",\"Valide\")),\"En cours\")),\"\")","v":""},{"$f":"IF(G1<>\"\",IF(OR($E3=Unique,$F3=Unique,$H3=Unique,$I3=Unique,$J3=Unique,$K3=Unique,$L3=Unique,$M3=Unique,$E6=Unique,$F6=Unique,$G6=Unique,$H6=Unique,$I6=Unique,$J6=Unique,$K6=Unique,$L6=Unique,$M6=Unique),\"\",IF(P17=TRUE,IF(P19=FALSE,\"Non valide\",IF(P20>0,\"En limite\",\"Valide\")),\"En cours\")),\"\")","v":""},{"$f":"IF(H1<>\"\",IF(OR($E3=Unique,$F3=Unique,$G3=Unique,$I3=Unique,$J3=Unique,$K3=Unique,$L3=Unique,$M3=Unique,$E6=Unique,$F6=Unique,$G6=Unique,$H6=Unique,$I6=Unique,$J6=Unique,$K6=Unique,$L6=Unique,$M6=Unique),\"\",IF(Q17=TRUE,IF(Q19=FALSE,\"Non valide\",IF(Q20>0,\"En limite\",\"Valide\")),\"En cours\")),\"\")","v":""},{"$f":"IF(I1<>\"\",IF(OR($E3=Unique,$F3=Unique,$G3=Unique,$H3=Unique,$J3=Unique,$K3=Unique,$L3=Unique,$M3=Unique,$E6=Unique,$F6=Unique,$G6=Unique,$H6=Unique,$I6=Unique,$J6=Unique,$K6=Unique,$L6=Unique,$M6=Unique),\"\",IF(R17=TRUE,IF(R19=FALSE,\"Non valide\",IF(R20>0,\"En limite\",\"Valide\")),\"En cours\")),\"\")","v":""},{"$f":"IF(J1<>\"\",IF(OR($E3=Unique,$F3=Unique,$G3=Unique,$H3=Unique,$I3=Unique,$K3=Unique,$L3=Unique,$M3=Unique,$E6=Unique,$F6=Unique,$G6=Unique,$H6=Unique,$I6=Unique,$J6=Unique,$K6=Unique,$L6=Unique,$M6=Unique),\"\",IF(S17=TRUE,IF(S19=FALSE,\"Non valide\",IF(S20>0,\"En limite\",\"Valide\")),\"En cours\")),\"\")","v":""},{"$f":"IF(K1<>\"\",IF(OR($E3=Unique,$F3=Unique,$G3=Unique,$H3=Unique,$I3=Unique,$J3=Unique,$L3=Unique,$M3=Unique,$E6=Unique,$F6=Unique,$G6=Unique,$H6=Unique,$I6=Unique,$J6=Unique,$K6=Unique,$L6=Unique,$M6=Unique),\"\",IF(T17=TRUE,IF(T19=FALSE,\"Non valide\",IF(T20>0,\"En limite\",\"Valide\")),\"En cours\")),\"\")","v":""},{"$f":"IF(L1<>\"\",IF(OR($E3=Unique,$F3=Unique,$G3=Unique,$H3=Unique,$I3=Unique,$J3=Unique,$K3=Unique,$M3=Unique,$E6=Unique,$F6=Unique,$G6=Unique,$H6=Unique,$I6=Unique,$J6=Unique,$K6=Unique,$L6=Unique,$M6=Unique),\"\",IF(U17=TRUE,IF(U19=FALSE,\"Non valide\",IF(U20>0,\"En limite\",\"Valide\")),\"En cours\")),\"\")","v":""},{"$f":"IF(M1<>\"\",IF(OR($E3=Unique,$F3=Unique,$G3=Unique,$H3=Unique,$I3=Unique,$J3=Unique,$K3=Unique,$L3=Unique,$E6=Unique,$F6=Unique,$G6=Unique,$H6=Unique,$I6=Unique,$J6=Unique,$K6=Unique,$L6=Unique,$M6=Unique),\"\",IF(V17=TRUE,IF(V19=FALSE,\"Non valide\",IF(V20>0,\"En limite\",\"Valide\")),\"En cours\")),\"\")","v":""}]
["Info 1",null,null,"Filtrage"]
["Info 2",null,null,"Fonction"]
["Info 3",null,null,"Etat",{"$f":"IF(E4<>\"\",IF(OR($E3=Unique,$F3=Unique,$G3=Unique,$H3=Unique,$I3=Unique,$J3=Unique,$K3=Unique,$L3=Unique,$M3=Unique,$F6=Unique,$G6=Unique,$H6=Unique,$I6=Unique,$J6=Unique,$K6=Unique,$L6=Unique,$M6=Unique),\"\",IF(W17=TRUE,IF(W19=FALSE,\"Non valide\",IF(W20>0,\"En limite\",\"Valide\")),\"En cours\")),\"\")","v":""},{"$f":"IF(F4<>\"\",IF(OR($E3=Unique,$F3=Unique,$G3=Unique,$H3=Unique,$I3=Unique,$J3=Unique,$K3=Unique,$L3=Unique,$M3=Unique,$E6=Unique,$G6=Unique,$H6=Unique,$I6=Unique,$J6=Unique,$K6=Unique,$L6=Unique,$M6=Unique),\"\",IF(X17=TRUE,IF(X19=FALSE,\"Non valide\",IF(X20>0,\"En limite\",\"Valide\")),\"En cours\")),\"\")","v":""},{"$f":"IF(G4<>\"\",IF(OR($E3=Unique,$F3=Unique,$G3=Unique,$H3=Unique,$I3=Unique,$J3=Unique,$K3=Unique,$L3=Unique,$M3=Unique,$E6=Unique,$F6=Unique,$H6=Unique,$I6=Unique,$J6=Unique,$K6=Unique,$L6=Unique,$M6=Unique),\"\",IF(Y17=TRUE,IF(Y19=FALSE,\"Non valide\",IF(Y20>0,\"En limite\",\"Valide\")),\"En cours\")),\"\")","v":""},{"$f":"IF(H4<>\"\",IF(OR($E3=Unique,$F3=Unique,$G3=Unique,$H3=Unique,$I3=Unique,$J3=Unique,$K3=Unique,$L3=Unique,$M3=Unique,$E6=Unique,$F6=Unique,$G6=Unique,$I6=Unique,$J6=Unique,$K6=Unique,$L6=Unique,$M6=Unique),\"\",IF(Z17=TRUE,IF(Z19=FALSE,\"Non valide\",IF(Z20>0,\"En limite\",\"Valide\")),\"En cours\")),\"\")","v":""},{"$f":"IF(I4<>\"\",IF(OR($E3=Unique,$F3=Unique,$G3=Unique,$H3=Unique,$I3=Unique,$J3=Unique,$K3=Unique,$L3=Unique,$M3=Unique,$E6=Unique,$F6=Unique,$G6=Unique,$H6=Unique,$J6=Unique,$K6=Unique,$L6=Unique,$M6=Unique),\"\",IF(AA17=TRUE,IF(AA19=FALSE,\"Non valide\",IF(AA20>0,\"En limite\",\"Valide\")),\"En cours\")),\"\")","v":""},{"$f":"IF(J4<>\"\",IF(OR($E3=Unique,$F3=Unique,$G3=Unique,$H3=Unique,$I3=Unique,$J3=Unique,$K3=Unique,$L3=Unique,$M3=Unique,$E6=Unique,$F6=Unique,$G6=Unique,$H6=Unique,$I6=Unique,$K6=Unique,$L6=Unique,$M6=Unique),\"\",IF(AB17=TRUE,IF(AB19=FALSE,\"Non valide\",IF(AB20>0,\"En limite\",\"Valide\")),\"En cours\")),\"\")","v":""},{"$f":"IF(K4<>\"\",IF(OR($E3=Unique,$F3=Unique,$G3=Unique,$H3=Unique,$I3=Unique,$J3=Unique,$K3=Unique,$L3=Unique,$M3=Unique,$E6=Unique,$F6=Unique,$G6=Unique,$H6=Unique,$I6=Unique,$J6=Unique,$L6=Unique,$M6=Unique),\"\",IF(AC17=TRUE,IF(AC19=FALSE,\"Non valide\",IF(AC20>0,\"En limite\",\"Valide\")),\"En cours\")),\"\")","v":""},{"$f":"IF(L4<>\"\",IF(OR($E3=Unique,$F3=Unique,$G3=Unique,$H3=Unique,$I3=Unique,$J3=Unique,$K3=Unique,$L3=Unique,$M3=Unique,$E6=Unique,$F6=Unique,$G6=Unique,$H6=Unique,$I6=Unique,$J6=Unique,$K6=Unique,$M6=Unique),\"\",IF(AD17=TRUE,IF(AD19=FALSE,\"Non valide\",IF(AD20>0,\"En limite\",\"Valide\")),\"En cours\")),\"\")","v":""},{"$f":"IF(M4<>\"\",IF(OR($E3=Unique,$F3=Unique,$G3=Unique,$H3=Unique,$I3=Unique,$J3=Unique,$K3=Unique,$L3=Unique,$M3=Unique,$E6=Unique,$F6=Unique,$G6=Unique,$H6=Unique,$I6=Unique,$J6=Unique,$K6=Unique,$L6=Unique,),\"\",IF(AE17=TRUE,IF(AE19=FALSE,\"Non valide\",IF(AE20>0,\"En limite\",\"Valide\")),\"En cours\")),\"\")","v":""}]
["Info 4",null,null,"Filtrage",null,null,null,null,null,null,null,null,null,{"$f":"E1&\"\"","v":""},{"$f":"F1&\"\"","v":""},"","","","","","","",{"$f":"E4&\"\"","v":""},{"$f":"F4&\"\"","v":""},"","","","","","","","Présentation",null,null,null,null,"Calcul pour affichage rapide par macro","% Formation"]
["Liste des opérations à suivre",null,null,null,null,null,null,null,null,"Date initiale","Date de renouvellement","Validité en mois","Date limite de validité",{"$f":"IF(OR(,$F$3=Unique,$G$3=Unique,$H$3=Unique,$I$3=Unique,$J$3=Unique,$K$3=Unique,$L$3=Unique,$M$3=Unique,$E$6=Unique,$F$6=Unique,$G$6=Unique,$H$6=Unique,$I$6=Unique,$J$6=Unique,$K$6=Unique,$L$6=Unique,$M$6=Unique),0,IF(N$6<>\"\",N$6,0))","v":0},{"$f":"IF(OR($E$3=Unique,$G$3=Unique,$H$3=Unique,$I$3=Unique,$J$3=Unique,$K$3=Unique,$L$3=Unique,$M$3=Unique,$E$6=Unique,$F$6=Unique,$G$6=Unique,$H$6=Unique,$I$6=Unique,$J$6=Unique,$K$6=Unique,$L$6=Unique,$M$6=Unique),0,IF(O$6<>\"\",O$6,0))","v":0},{"$f":"IF(OR($E$3=Unique,$F$3=Unique,$H$3=Unique,$I$3=Unique,$J$3=Unique,$K$3=Unique,$L$3=Unique,$M$3=Unique,$E$6=Unique,$F$6=Unique,$G$6=Unique,$H$6=Unique,$I$6=Unique,$J$6=Unique,$K$6=Unique,$L$6=Unique,$M$6=Unique),0,IF(P$6<>\"\",P$6,0))","v":0},{"$f":"IF(OR($E$3=Unique,$F$3=Unique,$G$3=Unique,$I$3=Unique,$J$3=Unique,$K$3=Unique,$L$3=Unique,$M$3=Unique,$E$6=Unique,$F$6=Unique,$G$6=Unique,$H$6=Unique,$I$6=Unique,$J$6=Unique,$K$6=Unique,$L$6=Unique,$M$6=Unique),0,IF(Q$6<>\"\",Q$6,0))","v":0},{"$f":"IF(OR($E$3=Unique,$F$3=Unique,$G$3=Unique,$H$3=Unique,$J$3=Unique,$K$3=Unique,$L$3=Unique,$M$3=Unique,$E$6=Unique,$F$6=Unique,$G$6=Unique,$H$6=Unique,$I$6=Unique,$J$6=Unique,$K$6=Unique,$L$6=Unique,$M$6=Unique),0,IF(R$6<>\"\",R$6,0))","v":0},{"$f":"IF(OR($E$3=Unique,$F$3=Unique,$G$3=Unique,$H$3=Unique,$I$3=Unique,$K$3=Unique,$L$3=Unique,$M$3=Unique,$E$6=Unique,$F$6=Unique,$G$6=Unique,$H$6=Unique,$I$6=Unique,$J$6=Unique,$K$6=Unique,$L$6=Unique,$M$6=Unique),0,IF(S$6<>\"\",S$6,0))","v":0},{"$f":"IF(OR($E$3=Unique,$F$3=Unique,$G$3=Unique,$H$3=Unique,$I$3=Unique,$J$3=Unique,$L$3=Unique,$M$3=Unique,$E$6=Unique,$F$6=Unique,$G$6=Unique,$H$6=Unique,$I$6=Unique,$J$6=Unique,$K$6=Unique,$L$6=Unique,$M$6=Unique),0,IF(T$6<>\"\",T$6,0))","v":0},{"$f":"IF(OR($E$3=Unique,$F$3=Unique,$G$3=Unique,$H$3=Unique,$I$3=Unique,$J$3=Unique,$K$3=Unique,$M$3=Unique,$E$6=Unique,$F$6=Unique,$G$6=Unique,$H$6=Unique,$I$6=Unique,$J$6=Unique,$K$6=Unique,$L$6=Unique,$M$6=Unique),0,IF(U$6<>\"\",U$6,0))","v":0},{"$f":"IF(OR($E$3=Unique,$F$3=Unique,$G$3=Unique,$H$3=Unique,$I$3=Unique,$J$3=Unique,$K$3=Unique,$L$3=Unique,$E$6=Unique,$F$6=Unique,$G$6=Unique,$H$6=Unique,$I$6=Unique,$J$6=Unique,$K$6=Unique,$L$6=Unique,$M$6=Unique),0,IF(V$6<>\"\",V$6,0))","v":0},{"$f":"IF(OR($E$3=Unique,$F$3=Unique,$G$3=Unique,$H$3=Unique,$I$3=Unique,$J$3=Unique,$K$3=Unique,$L$3=Unique,$M$3=Unique,$F$6=Unique,$G$6=Unique,$H$6=Unique,$I$6=Unique,$J$6=Unique,$K$6=Unique,$L$6=Unique,$M$6=Unique),0,IF(W$6<>\"\",W$6,0))","v":0},{"$f":"IF(OR($E$3=Unique,$F$3=Unique,$G$3=Unique,$H$3=Unique,$I$3=Unique,$J$3=Unique,$K$3=Unique,$L$3=Unique,$M$3=Unique,$E$6=Unique,$G$6=Unique,$H$6=Unique,$I$6=Unique,$J$6=Unique,$K$6=Unique,$L$6=Unique,$M$6=Unique),0,IF(X$6<>\"\",X$6,0))","v":0},{"$f":"IF(OR($E$3=Unique,$F$3=Unique,$G$3=Unique,$H$3=Unique,$I$3=Unique,$J$3=Unique,$K$3=Unique,$L$3=Unique,$M$3=Unique,$E$6=Unique,$F$6=Unique,$H$6=Unique,$I$6=Unique,$J$6=Unique,$K$6=Unique,$L$6=Unique,$M$6=Unique),0,IF(Y$6<>\"\",Y$6,0))","v":0},{"$f":"IF(OR($E$3=Unique,$F$3=Unique,$G$3=Unique,$H$3=Unique,$I$3=Unique,$J$3=Unique,$K$3=Unique,$L$3=Unique,$M$3=Unique,$E$6=Unique,$F$6=Unique,$G$6=Unique,$I$6=Unique,$J$6=Unique,$K$6=Unique,$L$6=Unique,$M$6=Unique),0,IF(Z$6<>\"\",Z$6,0))","v":0},{"$f":"IF(OR($E$3=Unique,$F$3=Unique,$G$3=Unique,$H$3=Unique,$I$3=Unique,$J$3=Unique,$K$3=Unique,$L$3=Unique,$M$3=Unique,$E$6=Unique,$F$6=Unique,$G$6=Unique,$H$6=Unique,$J$6=Unique,$K$6=Unique,$L$6=Unique,$M$6=Unique),0,IF(AA$6<>\"\",AA$6,0))","v":0},{"$f":"IF(OR($E$3=Unique,$F$3=Unique,$G$3=Unique,$H$3=Unique,$I$3=Unique,$J$3=Unique,$K$3=Unique,$L$3=Unique,$M$3=Unique,$E$6=Unique,$F$6=Unique,$G$6=Unique,$H$6=Unique,$I$6=Unique,$K$6=Unique,$L$6=Unique,$M$6=Unique),0,IF(AB$6<>\"\",AB$6,0))","v":0},{"$f":"IF(OR($E$3=Unique,$F$3=Unique,$G$3=Unique,$H$3=Unique,$I$3=Unique,$J$3=Unique,$K$3=Unique,$L$3=Unique,$M$3=Unique,$E$6=Unique,$F$6=Unique,$G$6=Unique,$H$6=Unique,$I$6=Unique,$J$6=Unique,$L$6=Unique,$M$6=Unique),0,IF(AC$6<>\"\",AC$6,0))","v":0},{"$f":"IF(OR($E$3=Unique,$F$3=Unique,$G$3=Unique,$H$3=Unique,$I$3=Unique,$J$3=Unique,$K$3=Unique,$L$3=Unique,$M$3=Unique,$E$6=Unique,$F$6=Unique,$G$6=Unique,$H$6=Unique,$I$6=Unique,$J$6=Unique,$K$6=Unique,$M$6=Unique),0,IF(AD$6<>\"\",AD$6,0))","v":0},{"$f":"IF(OR($E$3=Unique,$F$3=Unique,$G$3=Unique,$H$3=Unique,$I$3=Unique,$J$3=Unique,$K$3=Unique,$L$3=Unique,$M$3=Unique,$E$6=Unique,$F$6=Unique,$G$6=Unique,$H$6=Unique,$I$6=Unique,$J$6=Unique,$K$6=Unique,$L$6=Unique),0,IF(AE$6<>\"\",AE$6,0))","v":0},"Faut-il afficher la ligne ?","Y a-t-il maintien ?","limite opération","Limite","Périm.","opérations à\nafficher",{"$f":"IF(IFERROR((100*SUMPRODUCT((INDIRECT(\"$J$\"&décalage+2&\":$J$\"&décalage+2+nb_opérations)<>\"\")*(INDIRECT(\"$AF$\"&décalage+2&\":$AF$\"&décalage+2+nb_opérations)=TRUE)))/SUMPRODUCT((INDIRECT(\"$AF$\"&décalage+2&\":$AF$\"&décalage+2+nb_opérations)=TRUE)*1),0)=0,\"Non débutée\",(100*SUMPRODUCT((INDIRECT(\"$J$\"&décalage+2&\":$J$\"&décalage+2+nb_opérations)<>\"\")*(INDIRECT(\"$AF$\"&décalage+2&\":$AF$\"&décalage+2+nb_opérations)=TRUE)))/SUMPRODUCT((INDIRECT(\"$AF$\"&décalage+2&\":$AF$\"&décalage+2+nb_opérations)=TRUE)*1))","v":"Non débutée"}]
[null,null,null,null,null,null,null,null,"AA",null,{"$f":"IF($J8=\"\",\"\",$J8)","v":""},{"$f":"IF(AND($AF8<>\"\",COUNTIF($N8:$AE8,11)>0),HLOOKUP($L$7,BD,ROW()-décalage,FALSE),\"\")","v":""},{"$f":"IFERROR(IF(AND($K8<>\"\",$L8>0),EDATE($K8,$L8),\"\"),\"\")","v":""},{"$f":"IF(N$7<>0,HLOOKUP(N$7,BD,ROW()-décalage,FALSE),0)","v":0},0,0,0,0,0,0,0,0,0,0,0,0,0,0,0,0,0,{"$f":"IF(SUM($N8:$AE8)>0,TRUE,\"\")","v":""},{"$f":"IF(COUNTIF($N8:$AE8,11)>0,IF($L8<>\"\",TRUE,FALSE),\"\")","v":""},{"$f":"IF(COUNTIF($N8:$AE8,11)>0,HLOOKUP($AH$7,BD,ROW()-décalage,FALSE),\"\")","v":""},{"$f":"IF($AG8<>\"\",IF(AND($AG8,$M8<>\"\"),IF(EDATE($M8,-$AH8)<ce_jour_calculé,TRUE,FALSE),\"\"),\"\")","v":""},{"$f":"IF($AG8<>\"\",AND($M8<ce_jour_calculé),\"\")","v":""}]
[null,null,null,null,null,null,null,null,"BB",null,"","","",{"$f":"IF(N$7<>0,HLOOKUP(N$7,BD,ROW()-décalage,FALSE),0)","v":0},0,0,0,0,0,0,0,0,0,0,0,0,0,0,0,0,0,{"$f":"IF(SUM($N9:$AE9)>0,TRUE,\"\")","v":""},{"$f":"IF(COUNTIF($N9:$AE9,11)>0,IF($L9<>\"\",TRUE,FALSE),\"\")","v":""},"","",""]
[null,null,null,null,null,null,null,null,"CC",null,"","","",0,0,0,0,0,0,0,0,0,0,0,0,0,0,0,0,0,0,"","","","",""]
[null,null,null,null,null,null,null,null,"DD",null,"","","",0,0,0,0,0,0,0,0,0,{"$f":"IF(W$7<>0,HLOOKUP(W$7,BD,ROW()-décalage,FALSE),0)","v":0},0,0,0,0,0,0,0,0,"","","","",""]
[null,null,null,null,null,null,null,null,"opération 01",null,"","","",0,0,0,0,0,0,0,0,0,0,0,0,0,0,0,0,0,0,"","","","",""]
[null,null,null,null,null,null,null,null,"Z - ne pas effacer cet intitulé d'opération !",null,"","","",0,0,0,0,0,0,0,0,0,0,0,0,0,0,0,0,0,0,"","","","",""]
["Fin de liste"]
[null,null,null,null,null,null,null,null,"Date max",{"$f":"IF(MAX(M$7:M13)=0,\"\",MAX(M$7:M13))","v":""},null,null,null,{"$f":"SUMPRODUCT(($K$8:$K13<>\"\")*(IF(N$8:N13<>0,1,0)))","v":0},{"$f":"SUMPRODUCT(($K$8:$K13<>\"\")*(IF(O$8:O13<>0,1,0)))","v":0},{"$f":"SUMPRODUCT(($K$8:$K13<>\"\")*(IF(P$8:P13<>0,1,0)))","v":0},{"$f":"SUMPRODUCT(($K$8:$K13<>\"\")*(IF(Q$8:Q13<>0,1,0)))","v":0},{"$f":"SUMPRODUCT(($K$8:$K13<>\"\")*(IF(R$8:R13<>0,1,0)))","v":0},{"$f":"SUMPRODUCT(($K$8:$K13<>\"\")*(IF(S$8:S13<>0,1,0)))","v":0},{"$f":"SUMPRODUCT(($K$8:$K13<>\"\")*(IF(T$8:T13<>0,1,0)))","v":0},{"$f":"SUMPRODUCT(($K$8:$K13<>\"\")*(IF(U$8:U13<>0,1,0)))","v":0},{"$f":"SUMPRODUCT(($K$8:$K13<>\"\")*(IF(V$8:V13<>0,1,0)))","v":0},{"$f":"SUMPRODUCT(($K$8:$K13<>\"\")*(IF(W$8:W13<>0,1,0)))","v":0},{"$f":"SUMPRODUCT(($K$8:$K13<>\"\")*(IF(X$8:X13<>0,1,0)))","v":0},{"$f":"SUMPRODUCT(($K$8:$K13<>\"\")*(IF(Y$8:Y13<>0,1,0)))","v":0},{"$f":"SUMPRODUCT(($K$8:$K13<>\"\")*(IF(Z$8:Z13<>0,1,0)))","v":0},{"$f":"SUMPRODUCT(($K$8:$K13<>\"\")*(IF(AA$8:AA13<>0,1,0)))","v":0},{"$f":"SUMPRODUCT(($K$8:$K13<>\"\")*(IF(AB$8:AB13<>0,1,0)))","v":0},{"$f":"SUMPRODUCT(($K$8:$K13<>\"\")*(IF(AC$8:AC13<>0,1,0)))","v":0},{"$f":"SUMPRODUCT(($K$8:$K13<>\"\")*(IF(AD$8:AD13<>0,1,0)))","v":0},{"$f":"SUMPRODUCT(($K$8:$K13<>\"\")*(IF(AE$8:AE13<>0,1,0)))","v":0}]
[null,null,null,null,null,null,null,null,"Date min",{"$f":"IF(MIN(M$7:M13)=0,\"\",MIN(M$7:M13))","v":""},null,null,null,{"$f":"SUMPRODUCT(((N$8:N13)<>0)*1)","v":0},{"$f":"SUMPRODUCT(((O$8:O13)<>0)*1)","v":0},{"$f":"SUMPRODUCT(((P$8:P13)<>0)*1)","v":0},{"$f":"SUMPRODUCT(((Q$8:Q13)<>0)*1)","v":0},{"$f":"SUMPRODUCT(((R$8:R13)<>0)*1)","v":0},{"$f":"SUMPRODUCT(((S$8:S13)<>0)*1)","v":0},{"$f":"SUMPRODUCT(((T$8:T13)<>0)*1)","v":0},{"$f":"SUMPRODUCT(((U$8:U13)<>0)*1)","v":0},{"$f":"SUMPRODUCT(((V$8:V13)<>0)*1)","v":0},{"$f":"SUMPRODUCT(((W$8:W13)<>0)*1)","v":0},{"$f":"SUMPRODUCT(((X$8:X13)<>0)*1)","v":0},{"$f":"SUMPRODUCT(((Y$8:Y13)<>0)*1)","v":0},{"$f":"SUMPRODUCT(((Z$8:Z13)<>0)*1)","v":0},{"$f":"SUMPRODUCT(((AA$8:AA13)<>0)*1)","v":0},{"$f":"SUMPRODUCT(((AB$8:AB13)<>0)*1)","v":0},{"$f":"SUMPRODUCT(((AC$8:AC13)<>0)*1)","v":0},{"$f":"SUMPRODUCT(((AD$8:AD13)<>0)*1)","v":0},{"$f":"SUMPRODUCT(((AE$8:AE13)<>0)*1)","v":0}]
[null,null,null,null,null,null,null,null,null,null,null,null,"Parrainage fini ?",{"$f":"IF(N15=N16,TRUE,FALSE)","v":true},{"$f":"IF(O15=O16,TRUE,FALSE)","v":true},true,true,true,true,true,true,true,{"$f":"IF(W15=W16,TRUE,FALSE)","v":true},{"$f":"IF(X15=X16,TRUE,FALSE)","v":true},true,true,true,true,true,true,true]
[null,null,null,null,null,null,null,null,null,null,null,null,null,{"$f":"SUMPRODUCT((IF($M$8:$M13<ce_jour_calculé,1,0))*(IF(N$8:N13>1,1,0)))","v":0},{"$f":"SUMPRODUCT((IF($M$8:$M13<ce_jour_calculé,1,0))*(IF(O$8:O13>1,1,0)))","v":0},{"$f":"SUMPRODUCT((IF($M$8:$M13<ce_jour_calculé,1,0))*(IF(P$8:P13>1,1,0)))","v":0},{"$f":"SUMPRODUCT((IF($M$8:$M13<ce_jour_calculé,1,0))*(IF(Q$8:Q13>1,1,0)))","v":0},{"$f":"SUMPRODUCT((IF($M$8:$M13<ce_jour_calculé,1,0))*(IF(R$8:R13>1,1,0)))","v":0},{"$f":"SUMPRODUCT((IF($M$8:$M13<ce_jour_calculé,1,0))*(IF(S$8:S13>1,1,0)))","v":0},{"$f":"SUMPRODUCT((IF($M$8:$M13<ce_jour_calculé,1,0))*(IF(T$8:T13>1,1,0)))","v":0},{"$f":"SUMPRODUCT((IF($M$8:$M13<ce_jour_calculé,1,0))*(IF(U$8:U13>1,1,0)))","v":0},{"$f":"SUMPRODUCT((IF($M$8:$M13<ce_jour_calculé,1,0))*(IF(V$8:V13>1,1,0)))","v":0},{"$f":"SUMPRODUCT((IF($M$8:$M13<ce_jour_calculé,1,0))*(IF(W$8:W13>1,1,0)))","v":0},{"$f":"SUMPRODUCT((IF($M$8:$M13<ce_jour_calculé,1,0))*(IF(X$8:X13>1,1,0)))","v":0},{"$f":"SUMPRODUCT((IF($M$8:$M13<ce_jour_calculé,1,0))*(IF(Y$8:Y13>1,1,0)))","v":0},{"$f":"SUMPRODUCT((IF($M$8:$M13<ce_jour_calculé,1,0))*(IF(Z$8:Z13>1,1,0)))","v":0},{"$f":"SUMPRODUCT((IF($M$8:$M13<ce_jour_calculé,1,0))*(IF(AA$8:AA13>1,1,0)))","v":0},{"$f":"SUMPRODUCT((IF($M$8:$M13<ce_jour_calculé,1,0))*(IF(AB$8:AB13>1,1,0)))","v":0},{"$f":"SUMPRODUCT((IF($M$8:$M13<ce_jour_calculé,1,0))*(IF(AC$8:AC13>1,1,0)))","v":0},{"$f":"SUMPRODUCT((IF($M$8:$M13<ce_jour_calculé,1,0))*(IF(AD$8:AD13>1,1,0)))","v":0},{"$f":"SUMPRODUCT((IF($M$8:$M13<ce_jour_calculé,1,0))*(IF(AE$8:AE13>1,1,0)))","v":0}]
[null,null,null,null,null,null,null,null,null,null,null,{"$f":"AND($N19:$AE19)","v":true},"Qualif à jour ?",{"$f":"IF(N18>0,FALSE,TRUE)","v":true},{"$f":"IF(O18>0,FALSE,TRUE)","v":true},true,true,true,true,true,true,true,{"$f":"IF(W18>0,FALSE,TRUE)","v":true},{"$f":"IF(X18>0,FALSE,TRUE)","v":true},true,true,true,true,true,true,true]
[null,null,null,null,null,null,null,null,null,null,null,{"$f":"SUM($N20:$AE20)","v":0},"Qualif limite ?",{"$f":"SUMPRODUCT((N$8:N13>1)*($AI$8:$AI13=TRUE))","v":0},{"$f":"SUMPRODUCT((O$8:O13>1)*($AI$8:$AI13=TRUE))","v":0},{"$f":"SUMPRODUCT((P$8:P13>1)*($AI$8:$AI13=TRUE))","v":0},{"$f":"SUMPRODUCT((Q$8:Q13>1)*($AI$8:$AI13=TRUE))","v":0},{"$f":"SUMPRODUCT((R$8:R13>1)*($AI$8:$AI13=TRUE))","v":0},{"$f":"SUMPRODUCT((S$8:S13>1)*($AI$8:$AI13=TRUE))","v":0},{"$f":"SUMPRODUCT((T$8:T13>1)*($AI$8:$AI13=TRUE))","v":0},{"$f":"SUMPRODUCT((U$8:U13>1)*($AI$8:$AI13=TRUE))","v":0},{"$f":"SUMPRODUCT((V$8:V13>1)*($AI$8:$AI13=TRUE))","v":0},{"$f":"SUMPRODUCT((W$8:W13>1)*($AI$8:$AI13=TRUE))","v":0},{"$f":"SUMPRODUCT((X$8:X13>1)*($AI$8:$AI13=TRUE))","v":0},{"$f":"SUMPRODUCT((Y$8:Y13>1)*($AI$8:$AI13=TRUE))","v":0},{"$f":"SUMPRODUCT((Z$8:Z13>1)*($AI$8:$AI13=TRUE))","v":0},{"$f":"SUMPRODUCT((AA$8:AA13>1)*($AI$8:$AI13=TRUE))","v":0},{"$f":"SUMPRODUCT((AB$8:AB13>1)*($AI$8:$AI13=TRUE))","v":0},{"$f":"SUMPRODUCT((AC$8:AC13>1)*($AI$8:$AI13=TRUE))","v":0},{"$f":"SUMPRODUCT((AD$8:AD13>1)*($AI$8:$AI13=TRUE))","v":0},{"$f":"SUMPRODUCT((AE$8:AE13>1)*($AI$8:$AI13=TRUE))","v":0}]

{"sheet":"LouReeD","index":7,"n_rows":20,"n_cols":38,"rows_kept":20,"cut":false,"hidden":false,"merged":[[5,31,5,35],[6,0,6,8],[0,0,0,2],[1,1,1,2],[2,1,2,2],[3,1,3,2],[4,1,4,2],[5,1,5,2]]}
["LouReeD",null,null,"Fonction","Fonction 03"]
["Situation au",{"$f":"ce_jour_calculé","v":"2019-07-15"},null,"Etat",{"$f":"IF(E1<>\"\",IF(OR($F3=Unique,$G3=Unique,$H3=Unique,$I3=Unique,$J3=Unique,$K3=Unique,$L3=Unique,$M3=Unique,$E6=Unique,$F6=Unique,$G6=Unique,$H6=Unique,$I6=Unique,$J6=Unique,$K6=Unique,$L6=Unique,$M6=Unique),\"\",IF(N17=TRUE,IF(N19=FALSE,\"Non valide\",IF(N20>0,\"En limite\",\"Valide\")),\"En cours\")),\"\")","v":"En cours"},{"$f":"IF(F1<>\"\",IF(OR($E3=Unique,$G3=Unique,$H3=Unique,$I3=Unique,$J3=Unique,$K3=Unique,$L3=Unique,$M3=Unique,$E6=Unique,$F6=Unique,$G6=Unique,$H6=Unique,$I6=Unique,$J6=Unique,$K6=Unique,$L6=Unique,$M6=Unique),\"\",IF(O17=TRUE,IF(O19=FALSE,\"Non valide\",IF(O20>0,\"En limite\",\"Valide\")),\"En cours\")),\"\")","v":""},{"$f":"IF(G1<>\"\",IF(OR($E3=Unique,$F3=Unique,$H3=Unique,$I3=Unique,$J3=Unique,$K3=Unique,$L3=Unique,$M3=Unique,$E6=Unique,$F6=Unique,$G6=Unique,$H6=Unique,$I6=Unique,$J6=Unique,$K6=Unique,$L6=Unique,$M6=Unique),\"\",IF(P17=TRUE,IF(P19=FALSE,\"Non valide\",IF(P20>0,\"En limite\",\"Valide\")),\"En cours\")),\"\")","v":""},{"$f":"IF(H1<>\"\",IF(OR($E3=Unique,$F3=Unique,$G3=Unique,$I3=Unique,$J3=Unique,$K3=Unique,$L3=Unique,$M3=Unique,$E6=Unique,$F6=Unique,$G6=Unique,$H6=Unique,$I6=Unique,$J6=Unique,$K6=Unique,$L6=Unique,$M6=Unique),\"\",IF(Q17=TRUE,IF(Q19=FALSE,\"Non valide\",IF(Q20>0,\"En limite\",\"Valide\")),\"En cours\")),\"\")","v":""},{"$f":"IF(I1<>\"\",IF(OR($E3=Unique,$F3=Unique,$G3=Unique,$H3=Unique,$J3=Unique,$K3=Unique,$L3=Unique,$M3=Unique,$E6=Unique,$F6=Unique,$G6=Unique,$H6=Unique,$I6=Unique,$J6=Unique,$K6=Unique,$L6=Unique,$M6=Unique),\"\",IF(R17=TRUE,IF(R19=FALSE,\"Non valide\",IF(R20>0,\"En limite\",\"Valide\")),\"En cours\")),\"\")","v":""},{"$f":"IF(J1<>\"\",IF(OR($E3=Unique,$F3=Unique,$G3=Unique,$H3=Unique,$I3=Unique,$K3=Unique,$L3=Unique,$M3=Unique,$E6=Unique,$F6=Unique,$G6=Unique,$H6=Unique,$I6=Unique,$J6=Unique,$K6=Unique,$L6=Unique,$M6=Unique),\"\",IF(S17=TRUE,IF(S19=FALSE,\"Non valide\",IF(S20>0,\"En limite\",\"Valide\")),\"En cours\")),\"\")","v":""},{"$f":"IF(K1<>\"\",IF(OR($E3=Unique,$F3=Unique,$G3=Unique,$H3=Unique,$I3=Unique,$J3=Unique,$L3=Unique,$M3=Unique,$E6=Unique,$F6=Unique,$G6=Unique,$H6=Unique,$I6=Unique,$J6=Unique,$K6=Unique,$L6=Unique,$M6=Unique),\"\",IF(T17=TRUE,IF(T19=FALSE,\"Non valide\",IF(T20>0,\"En limite\",\"Valide\")),\"En cours\")),\"\")","v":""},{"$f":"IF(L1<>\"\",IF(OR($E3=Unique,$F3=Unique,$G3=Unique,$H3=Unique,$I3=Unique,$J3=Unique,$K3=Unique,$M3=Unique,$E6=Unique,$F6=Unique,$G6=Unique,$H6=Unique,$I6=Unique,$J6=Unique,$K6=Unique,$L6=Unique,$M6=Unique),\"\",IF(U17=TRUE,IF(U19=FALSE,\"Non valide\",IF(U20>0,\"En limite\",\"Valide\")),\"En cours\")),\"\")","v":""},{"$f":"IF(M1<>\"\",IF(OR($E3=Unique,$F3=Unique,$G3=Unique,$H3=Unique,$I3=Unique,$J3=Unique,$K3=Unique,$L3=Unique,$E6=Unique,$F6=Unique,$G6=Unique,$H6=Unique,$I6=Unique,$J6=Unique,$K6=Unique,$L6=Unique,$M6=Unique),\"\",IF(V17=TRUE,IF(V19=FALSE,\"Non valide\",IF(V20>0,\"En limite\",\"Valide\")),\"En cours\")),\"\")","v":""}]
["Info 1",null,null,"Filtrage"]
["Info 2",null,null,"Fonction",null,"Fonction 05"]
["Info 3",null,null,"Etat",{"$f":"IF(E4<>\"\",IF(OR($E3=Unique,$F3=Unique,$G3=Unique,$H3=Unique,$I3=Unique,$J3=Unique,$K3=Unique,$L3=Unique,$M3=Unique,$F6=Unique,$G6=Unique,$H6=Unique,$I6=Unique,$J6=Unique,$K6=Unique,$L6=Unique,$M6=Unique),\"\",IF(W17=TRUE,IF(W19=FALSE,\"Non valide\",IF(W20>0,\"En limite\",\"Valide\")),\"En cours\")),\"\")","v":""},{"$f":"IF(F4<>\"\",IF(OR($E3=Unique,$F3=Unique,$G3=Unique,$H3=Unique,$I3=Unique,$J3=Unique,$K3=Unique,$L3=Unique,$M3=Unique,$E6=Unique,$G6=Unique,$H6=Unique,$I6=Unique,$J6=Unique,$K6=Unique,$L6=Unique,$M6=Unique),\"\",IF(X17=TRUE,IF(X19=FALSE,\"Non valide\",IF(X20>0,\"En limite\",\"Valide\")),\"En cours\")),\"\")","v":"En cours"},{"$f":"IF(G4<>\"\",IF(OR($E3=Unique,$F3=Unique,$G3=Unique,$H3=Unique,$I3=Unique,$J3=Unique,$K3=Unique,$L3=Unique,$M3=Unique,$E6=Unique,$F6=Unique,$H6=Unique,$I6=Unique,$J6=Unique,$K6=Unique,$L6=Unique,$M6=Unique),\"\",IF(Y17=TRUE,IF(Y19=FALSE,\"Non valide\",IF(Y20>0,\"En limite\",\"Valide\")),\"En cours\")),\"\")","v":""},{"$f":"IF(H4<>\"\",IF(OR($E3=Unique,$F3=Unique,$G3=Unique,$H3=Unique,$I3=Unique,$J3=Unique,$K3=Unique,$L3=Unique,$M3=Unique,$E6=Unique,$F6=Unique,$G6=Unique,$I6=Unique,$J6=Unique,$K6=Unique,$L6=Unique,$M6=Unique),\"\",IF(Z17=TRUE,IF(Z19=FALSE,\"Non valide\",IF(Z20>0,\"En limite\",\"Valide\")),\"En cours\")),\"\")","v":""},{"$f":"IF(I4<>\"\",IF(OR($E3=Unique,$F3=Unique,$G3=Unique,$H3=Unique,$I3=Unique,$J3=Unique,$K3=Unique,$L3=Unique,$M3=Unique,$E6=Unique,$F6=Unique,$G6=Unique,$H6=Unique,$J6=Unique,$K6=Unique,$L6=Unique,$M6=Unique),\"\",IF(AA17=TRUE,IF(AA19=FALSE,\"Non valide\",IF(AA20>0,\"En limite\",\"Valide\")),\"En cours\")),\"\")","v":""},{"$f":"IF(J4<>\"\",IF(OR($E3=Unique,$F3=Unique,$G3=Unique,$H3=Unique,$I3=Unique,$J3=Unique,$K3=Unique,$L3=Unique,$M3=Unique,$E6=Unique,$F6=Unique,$G6=Unique,$H6=Unique,$I6=Unique,$K6=Unique,$L6=Unique,$M6=Unique),\"\",IF(AB17=TRUE,IF(AB19=FALSE,\"Non valide\",IF(AB20>0,\"En limite\",\"Valide\")),\"En cours\")),\"\")","v":""},{"$f":"IF(K4<>\"\",IF(OR($E3=Unique,$F3=Unique,$G3=Unique,$H3=Unique,$I3=Unique,$J3=Unique,$K3=Unique,$L3=Unique,$M3=Unique,$E6=Unique,$F6=Unique,$G6=Unique,$H6=Unique,$I6=Unique,$J6=Unique,$L6=Unique,$M6=Unique),\"\",IF(AC17=TRUE,IF(AC19=FALSE,\"Non valide\",IF(AC20>0,\"En limite\",\"Valide\")),\"En cours\")),\"\")","v":""},{"$f":"IF(L4<>\"\",IF(OR($E3=Unique,$F3=Unique,$G3=Unique,$H3=Unique,$I3=Unique,$J3=Unique,$K3=Unique,$L3=Unique,$M3=Unique,$E6=Unique,$F6=Unique,$G6=Unique,$H6=Unique,$I6=Unique,$J6=Unique,$K6=Unique,$M6=Unique),\"\",IF(AD17=TRUE,IF(AD19=FALSE,\"Non valide\",IF(AD20>0,\"En limite\",\"Valide\")),\"En cours\")),\"\")","v":""},{"$f":"IF(M4<>\"\",IF(OR($E3=Unique,$F3=Unique,$G3=Unique,$H3=Unique,$I3=Unique,$J3=Unique,$K3=Unique,$L3=Unique,$M3=Unique,$E6=Unique,$F6=Unique,$G6=Unique,$H6=Unique,$I6=Unique,$J6=Unique,$K6=Unique,$L6=Unique,),\"\",IF(AE17=TRUE,IF(AE19=FALSE,\"Non valide\",IF(AE20>0,\"En limite\",\"Valide\")),\"En cours\")),\"\")","v":""}]
["Info 4",null,null,"Filtrage",null,null,null,null,null,null,null,null,null,{"$f":"E1&\"\"","v":"Fonction 03"},{"$f":"F1&\"\"","v":""},"","","","","","","",{"$f":"E4&\"\"","v":""},{"$f":"F4&\"\"","v":"Fonction 05"},"","","","","","","","Présentation",null,null,null,null,"Calcul pour affichage rapide par macro","% Formation"]
["Liste des opérations à suivre",null,null,null,null,null,null,null,null,"Date initiale","Date de renouvellement","Validité en mois","Date limite de validité",{"$f":"IF(OR(,$F$3=Unique,$G$3=Unique,$H$3=Unique,$I$3=Unique,$J$3=Unique,$K$3=Unique,$L$3=Unique,$M$3=Unique,$E$6=Unique,$F$6=Unique,$G$6=Unique,$H$6=Unique,$I$6=Unique,$J$6=Unique,$K$6=Unique,$L$6=Unique,$M$6=Unique),0,IF(N$6<>\"\",N$6,0))","v":"Fonction 03"},{"$f":"IF(OR($E$3=Unique,$G$3=Unique,$H$3=Unique,$I$3=Unique,$J$3=Unique,$K$3=Unique,$L$3=Unique,$M$3=Unique,$E$6=Unique,$F$6=Unique,$G$6=Unique,$H$6=Unique,$I$6=Unique,$J$6=Unique,$K$6=Unique,$L$6=Unique,$M$6=Unique),0,IF(O$6<>\"\",O$6,0))","v":0},{"$f":"IF(OR($E$3=Unique,$F$3=Unique,$H$3=Unique,$I$3=Unique,$J$3=Unique,$K$3=Unique,$L$3=Unique,$M$3=Unique,$E$6=Unique,$F$6=Unique,$G$6=Unique,$H$6=Unique,$I$6=Unique,$J$6=Unique,$K$6=Unique,$L$6=Unique,$M$6=Unique),0,IF(P$6<>\"\",P$6,0))","v":0},{"$f":"IF(OR($E$3=Unique,$F$3=Unique,$G$3=Unique,$I$3=Unique,$J$3=Unique,$K$3=Unique,$L$3=Unique,$M$3=Unique,$E$6=Unique,$F$6=Unique,$G$6=Unique,$H$6=Unique,$I$6=Unique,$J$6=Unique,$K$6=Unique,$L$6=Unique,$M$6=Unique),0,IF(Q$6<>\"\",Q$6,0))","v":0},{"$f":"IF(OR($E$3=Unique,$F$3=Unique,$G$3=Unique,$H$3=Unique,$J$3=Unique,$K$3=Unique,$L$3=Unique,$M$3=Unique,$E$6=Unique,$F$6=Unique,$G$6=Unique,$H$6=Unique,$I$6=Unique,$J$6=Unique,$K$6=Unique,$L$6=Unique,$M$6=Unique),0,IF(R$6<>\"\",R$6,0))","v":0},{"$f":"IF(OR($E$3=Unique,$F$3=Unique,$G$3=Unique,$H$3=Unique,$I$3=Unique,$K$3=Unique,$L$3=Unique,$M$3=Unique,$E$6=Unique,$F$6=Unique,$G$6=Unique,$H$6=Unique,$I$6=Unique,$J$6=Unique,$K$6=Unique,$L$6=Unique,$M$6=Unique),0,IF(S$6<>\"\",S$6,0))","v":0},{"$f":"IF(OR($E$3=Unique,$F$3=Unique,$G$3=Unique,$H$3=Unique,$I$3=Unique,$J$3=Unique,$L$3=Unique,$M$3=Unique,$E$6=Unique,$F$6=Unique,$G$6=Unique,$H$6=Unique,$I$6=Unique,$J$6=Unique,$K$6=Unique,$L$6=Unique,$M$6=Unique),0,IF(T$6<>\"\",T$6,0))","v":0},{"$f":"IF(OR($E$3=Unique,$F$3=Unique,$G$3=Unique,$H$3=Unique,$I$3=Unique,$J$3=Unique,$K$3=Unique,$M$3=Unique,$E$6=Unique,$F$6=Unique,$G$6=Unique,$H$6=Unique,$I$6=Unique,$J$6=Unique,$K$6=Unique,$L$6=Unique,$M$6=Unique),0,IF(U$6<>\"\",U$6,0))","v":0},{"$f":"IF(OR($E$3=Unique,$F$3=Unique,$G$3=Unique,$H$3=Unique,$I$3=Unique,$J$3=Unique,$K$3=Unique,$L$3=Unique,$E$6=Unique,$F$6=Unique,$G$6=Unique,$H$6=Unique,$I$6=Unique,$J$6=Unique,$K$6=Unique,$L$6=Unique,$M$6=Unique),0,IF(V$6<>\"\",V$6,0))","v":0},{"$f":"IF(OR($E$3=Unique,$F$3=Unique,$G$3=Unique,$H$3=Unique,$I$3=Unique,$J$3=Unique,$K$3=Unique,$L$3=Unique,$M$3=Unique,$F$6=Unique,$G$6=Unique,$H$6=Unique,$I$6=Unique,$J$6=Unique,$K$6=Unique,$L$6=Unique,$M$6=Unique),0,IF(W$6<>\"\",W$6,0))","v":0},{"$f":"IF(OR($E$3=Unique,$F$3=Unique,$G$3=Unique,$H$3=Unique,$I$3=Unique,$J$3=Unique,$K$3=Unique,$L$3=Unique,$M$3=Unique,$E$6=Unique,$G$6=Unique,$H$6=Unique,$I$6=Unique,$J$6=Unique,$K$6=Unique,$L$6=Unique,$M$6=Unique),0,IF(X$6<>\"\",X$6,0))","v":"Fonction 05"},{"$f":"IF(OR($E$3=Unique,$F$3=Unique,$G$3=Unique,$H$3=Unique,$I$3=Unique,$J$3=Unique,$K$3=Unique,$L$3=Unique,$M$3=Unique,$E$6=Unique,$F$6=Unique,$H$6=Unique,$I$6=Unique,$J$6=Unique,$K$6=Unique,$L$6=Unique,$M$6=Unique),0,IF(Y$6<>\"\",Y$6,0))","v":0},{"$f":"IF(OR($E$3=Unique,$F$3=Unique,$G$3=Unique,$H$3=Unique,$I$3=Unique,$J$3=Unique,$K$3=Unique,$L$3=Unique,$M$3=Unique,$E$6=Unique,$F$6=Unique,$G$6=Unique,$I$6=Unique,$J$6=Unique,$K$6=Unique,$L$6=Unique,$M$6=Unique),0,IF(Z$6<>\"\",Z$6,0))","v":0},{"$f":"IF(OR($E$3=Unique,$F$3=Unique,$G$3=Unique,$H$3=Unique,$I$3=Unique,$J$3=Unique,$K$3=Unique,$L$3=Unique,$M$3=Unique,$E$6=Unique,$F$6=Unique,$G$6=Unique,$H$6=Unique,$J$6=Unique,$K$6=Unique,$L$6=Unique,$M$6=Unique),0,IF(AA$6<>\"\",AA$6,0))","v":0},{"$f":"IF(OR($E$3=Unique,$F$3=Unique,$G$3=Unique,$H$3=Unique,$I$3=Unique,$J$3=Unique,$K$3=Unique,$L$3=Unique,$M$3=Unique,$E$6=Unique,$F$6=Unique,$G$6=Unique,$H$6=Unique,$I$6=Unique,$K$6=Unique,$L$6=Unique,$M$6=Unique),0,IF(AB$6<>\"\",AB$6,0))","v":0},{"$f":"IF(OR($E$3=Unique,$F$3=Unique,$G$3=Unique,$H$3=Unique,$I$3=Unique,$J$3=Unique,$K$3=Unique,$L$3=Unique,$M$3=Unique,$E$6=Unique,$F$6=Unique,$G$6=Unique,$H$6=Unique,$I$6=Unique,$J$6=Unique,$L$6=Unique,$M$6=Unique),0,IF(AC$6<>\"\",AC$6,0))","v":0},{"$f":"IF(OR($E$3=Unique,$F$3=Unique,$G$3=Unique,$H$3=Unique,$I$3=Unique,$J$3=Unique,$K$3=Unique,$L$3=Unique,$M$3=Unique,$E$6=Unique,$F$6=Unique,$G$6=Unique,$H$6=Unique,$I$6=Unique,$J$6=Unique,$K$6=Unique,$M$6=Unique),0,IF(AD$6<>\"\",AD$6,0))","v":0},{"$f":"IF(OR($E$3=Unique,$F$3=Unique,$G$3=Unique,$H$3=Unique,$I$3=Unique,$J$3=Unique,$K$3=Unique,$L$3=Unique,$M$3=Unique,$E$6=Unique,$F$6=Unique,$G$6=Unique,$H$6=Unique,$I$6=Unique,$J$6=Unique,$K$6=Unique,$L$6=Unique),0,IF(AE$6<>\"\",AE$6,0))","v":0},"Faut-il afficher la ligne ?","Y a-t-il maintien ?","limite opération","Limite","Périm.","opérations à\nafficher",{"$f":"IF(IFERROR((100*SUMPRODUCT((INDIRECT(\"$J$\"&décalage+2&\":$J$\"&décalage+2+nb_opérations)<>\"\")*(INDIRECT(\"$AF$\"&décalage+2&\":$AF$\"&décalage+2+nb_opérations)=TRUE)))/SUMPRODUCT((INDIRECT(\"$AF$\"&décalage+2&\":$AF$\"&décalage+2+nb_opérations)=TRUE)*1),0)=0,\"Non débutée\",(100*SUMPRODUCT((INDIRECT(\"$J$\"&décalage+2&\":$J$\"&décalage+2+nb_opérations)<>\"\")*(INDIRECT(\"$AF$\"&décalage+2&\":$AF$\"&décalage+2+nb_opérations)=TRUE)))/SUMPRODUCT((INDIRECT(\"$AF$\"&décalage+2&\":$AF$\"&décalage+2+nb_opérations)=TRUE)*1))","v":"Non débutée"}]
[null,null,null,null,null,null,null,null,"AA",null,{"$f":"IF($J8=\"\",\"\",$J8)","v":""},{"$f":"IF(AND($AF8<>\"\",COUNTIF($N8:$AE8,11)>0),HLOOKUP($L$7,BD,ROW()-décalage,FALSE),\"\")","v":""},{"$f":"IFERROR(IF(AND($K8<>\"\",$L8>0),EDATE($K8,$L8),\"\"),\"\")","v":""},{"$f":"IF(N$7<>0,HLOOKUP(N$7,BD,ROW()-décalage,FALSE),0)","v":1},0,0,0,0,0,0,0,0,0,1,0,0,0,0,0,0,0,{"$f":"IF(SUM($N8:$AE8)>0,TRUE,\"\")","v":true},{"$f":"IF(COUNTIF($N8:$AE8,11)>0,IF($L8<>\"\",TRUE,FALSE),\"\")","v":""},{"$f":"IF(COUNTIF($N8:$AE8,11)>0,HLOOKUP($AH$7,BD,ROW()-décalage,FALSE),\"\")","v":""},{"$f":"IF($AG8<>\"\",IF(AND($AG8,$M8<>\"\"),IF(EDATE($M8,-$AH8)<ce_jour_calculé,TRUE,FALSE),\"\"),\"\")","v":""},{"$f":"IF($AG8<>\"\",AND($M8<ce_jour_calculé),\"\")","v":""}]
[null,null,null,null,null,null,null,null,"BB",null,"",6,"",11,0,0,0,0,0,0,0,0,0,0,0,0,0,0,0,0,0,{"$f":"IF(SUM($N9:$AE9)>0,TRUE,\"\")","v":true},{"$f":"IF(COUNTIF($N9:$AE9,11)>0,IF($L9<>\"\",TRUE,FALSE),\"\")","v":true},1,"",false,true]
[null,null,null,null,null,null,null,null,"CC",null,"","","",0,0,0,0,0,0,0,0,0,0,1,0,0,0,0,0,0,0,true,"","","","",true]
[null,null,null,null,null,null,null,null,"DD",null,"",12,"",0,0,0,0,0,0,0,0,0,{"$f":"IF(W$7<>0,HLOOKUP(W$7,BD,ROW()-décalage,FALSE),0)","v":0},11,0,0,0,0,0,0,0,true,true,3,"",false,true]
[null,null,null,null,null,null,null,null,"opération 01",null,"","","",0,0,0,0,0,0,0,0,0,0,0,0,0,0,0,0,0,0,"","","","",""]
[null,null,null,null,null,null,null,null,"Z - ne pas effacer cet intitulé d'opération !",null,"","","",0,0,0,0,0,0,0,0,0,0,0,0,0,0,0,0,0,0,"","","","",""]
["Fin de liste"]
[null,null,null,null,null,null,null,null,"Date max",{"$f":"IF(MAX(M$7:M13)=0,\"\",MAX(M$7:M13))","v":""},null,null,null,{"$f":"SUMPRODUCT(($K$8:$K13<>\"\")*(IF(N$8:N13<>0,1,0)))","v":0},{"$f":"SUMPRODUCT(($K$8:$K13<>\"\")*(IF(O$8:O13<>0,1,0)))","v":0},{"$f":"SUMPRODUCT(($K$8:$K13<>\"\")*(IF(P$8:P13<>0,1,0)))","v":0},{"$f":"SUMPRODUCT(($K$8:$K13<>\"\")*(IF(Q$8:Q13<>0,1,0)))","v":0},{"$f":"SUMPRODUCT(($K$8:$K13<>\"\")*(IF(R$8:R13<>0,1,0)))","v":0},{"$f":"SUMPRODUCT(($K$8:$K13<>\"\")*(IF(S$8:S13<>0,1,0)))","v":0},{"$f":"SUMPRODUCT(($K$8:$K13<>\"\")*(IF(T$8:T13<>0,1,0)))","v":0},{"$f":"SUMPRODUCT(($K$8:$K13<>\"\")*(IF(U$8:U13<>0,1,0)))","v":0},{"$f":"SUMPRODUCT(($K$8:$K13<>\"\")*(IF(V$8:V13<>0,1,0)))","v":0},{"$f":"SUMPRODUCT(($K$8:$K13<>\"\")*(IF(W$8:W13<>0,1,0)))","v":0},{"$f":"SUMPRODUCT(($K$8:$K13<>\"\")*(IF(X$8:X13<>0,1,0)))","v":0},{"$f":"SUMPRODUCT(($K$8:$K13<>\"\")*(IF(Y$8:Y13<>0,1,0)))","v":0},{"$f":"SUMPRODUCT(($K$8:$K13<>\"\")*(IF(Z$8:Z13<>0,1,0)))","v":0},{"$f":"SUMPRODUCT(($K$8:$K13<>\"\")*(IF(AA$8:AA13<>0,1,0)))","v":0},{"$f":"SUMPRODUCT(($K$8:$K13<>\"\")*(IF(AB$8:AB13<>0,1,0)))","v":0},{"$f":"SUMPRODUCT(($K$8:$K13<>\"\")*(IF(AC$8:AC13<>0,1,0)))","v":0},{"$f":"SUMPRODUCT(($K$8:$K13<>\"\")*(IF(AD$8:AD13<>0,1,0)))","v":0},{"$f":"SUMPRODUCT(($K$8:$K13<>\"\")*(IF(AE$8:AE13<>0,1,0)))","v":0}]
[null,null,null,null,null,null,null,null,"Date min",{"$f":"IF(MIN(M$7:M13)=0,\"\",MIN(M$7:M13))","v":""},null,null,null,{"$f":"SUMPRODUCT(((N$8:N13)<>0)*1)","v":2},{"$f":"SUMPRODUCT(((O$8:O13)<>0)*1)","v":0},{"$f":"SUMPRODUCT(((P$8:P13)<>0)*1)","v":0},{"$f":"SUMPRODUCT(((Q$8:Q13)<>0)*1)","v":0},{"$f":"SUMPRODUCT(((R$8:R13)<>0)*1)","v":0},{"$f":"SUMPRODUCT(((S$8:S13)<>0)*1)","v":0},{"$f":"SUMPRODUCT(((T$8:T13)<>0)*1)","v":0},{"$f":"SUMPRODUCT(((U$8:U13)<>0)*1)","v":0},{"$f":"SUMPRODUCT(((V$8:V13)<>0)*1)","v":0},{"$f":"SUMPRODUCT(((W$8:W13)<>0)*1)","v":0},{"$f":"SUMPRODUCT(((X$8:X13)<>0)*1)","v":3},{"$f":"SUMPRODUCT(((Y$8:Y13)<>0)*1)","v":0},{"$f":"SUMPRODUCT(((Z$8:Z13)<>0)*1)","v":0},{"$f":"SUMPRODUCT(((AA$8:AA13)<>0)*1)","v":0},{"$f":"SUMPRODUCT(((AB$8:AB13)<>0)*1)","v":0},{"$f":"SUMPRODUCT(((AC$8:AC13)<>0)*1)","v":0},{"$f":"SUMPRODUCT(((AD$8:AD13)<>0)*1)","v":0},{"$f":"SUMPRODUCT(((AE$8:AE13)<>0)*1)","v":0}]
[null,null,null,null,null,null,null,null,null,null,null,null,"Parrainage fini ?",{"$f":"IF(N15=N16,TRUE,FALSE)","v":false},{"$f":"IF(O15=O16,TRUE,FALSE)","v":true},true,true,true,true,true,true,true,{"$f":"IF(W15=W16,TRUE,FALSE)","v":true},{"$f":"IF(X15=X16,TRUE,FALSE)","v":false},true,true,true,true,true,true,true]
[null,null,null,null,null,null,null,null,null,null,null,null,null,{"$f":"SUMPRODUCT((IF($M$8:$M13<ce_jour_calculé,1,0))*(IF(N$8:N13>1,1,0)))","v":0},{"$f":"SUMPRODUCT((IF($M$8:$M13<ce_jour_calculé,1,0))*(IF(O$8:O13>1,1,0)))","v":0},{"$f":"SUMPRODUCT((IF($M$8:$M13<ce_jour_calculé,1,0))*(IF(P$8:P13>1,1,0)))","v":0},{"$f":"SUMPRODUCT((IF($M$8:$M13<ce_jour_calculé,1,0))*(IF(Q$8:Q13>1,1,0)))","v":0},{"$f":"SUMPRODUCT((IF($M$8:$M13<ce_jour_calculé,1,0))*(IF(R$8:R13>1,1,0)))","v":0},{"$f":"SUMPRODUCT((IF($M$8:$M13<ce_jour_calculé,1,0))*(IF(S$8:S13>1,1,0)))","v":0},{"$f":"SUMPRODUCT((IF($M$8:$M13<ce_jour_calculé,1,0))*(IF(T$8:T13>1,1,0)))","v":0},{"$f":"SUMPRODUCT((IF($M$8:$M13<ce_jour_calculé,1,0))*(IF(U$8:U13>1,1,0)))","v":0},{"$f":"SUMPRODUCT((IF($M$8:$M13<ce_jour_calculé,1,0))*(IF(V$8:V13>1,1,0)))","v":0},{"$f":"SUMPRODUCT((IF($M$8:$M13<ce_jour_calculé,1,0))*(IF(W$8:W13>1,1,0)))","v":0},{"$f":"SUMPRODUCT((IF($M$8:$M13<ce_jour_calculé,1,0))*(IF(X$8:X13>1,1,0)))","v":0},{"$f":"SUMPRODUCT((IF($M$8:$M13<ce_jour_calculé,1,0))*(IF(Y$8:Y13>1,1,0)))","v":0},{"$f":"SUMPRODUCT((IF($M$8:$M13<ce_jour_calculé,1,0))*(IF(Z$8:Z13>1,1,0)))","v":0},{"$f":"SUMPRODUCT((IF($M$8:$M13<ce_jour_calculé,1,0))*(IF(AA$8:AA13>1,1,0)))","v":0},{"$f":"SUMPRODUCT((IF($M$8:$M13<ce_jour_calculé,1,0))*(IF(AB$8:AB13>1,1,0)))","v":0},{"$f":"SUMPRODUCT((IF($M$8:$M13<ce_jour_calculé,1,0))*(IF(AC$8:AC13>1,1,0)))","v":0},{"$f":"SUMPRODUCT((IF($M$8:$M13<ce_jour_calculé,1,0))*(IF(AD$8:AD13>1,1,0)))","v":0},{"$f":"SUMPRODUCT((IF($M$8:$M13<ce_jour_calculé,1,0))*(IF(AE$8:AE13>1,1,0)))","v":0}]
[null,null,null,null,null,null,null,null,null,null,null,{"$f":"AND($N19:$AE19)","v":true},"Qualif à jour ?",{"$f":"IF(N18>0,FALSE,TRUE)","v":true},{"$f":"IF(O18>0,FALSE,TRUE)","v":true},true,true,true,true,true,true,true,{"$f":"IF(W18>0,FALSE,TRUE)","v":true},{"$f":"IF(X18>0,FALSE,TRUE)","v":true},true,true,true,true,true,true,true]
[null,null,null,null,null,null,null,null,null,null,null,{"$f":"SUM($N20:$AE20)","v":0},"Qualif limite ?",{"$f":"SUMPRODUCT((N$8:N13>1)*($AI$8:$AI13=TRUE))","v":0},{"$f":"SUMPRODUCT((O$8:O13>1)*($AI$8:$AI13=TRUE))","v":0},{"$f":"SUMPRODUCT((P$8:P13>1)*($AI$8:$AI13=TRUE))","v":0},{"$f":"SUMPRODUCT((Q$8:Q13>1)*($AI$8:$AI13=TRUE))","v":0},{"$f":"SUMPRODUCT((R$8:R13>1)*($AI$8:$AI13=TRUE))","v":0},{"$f":"SUMPRODUCT((S$8:S13>1)*($AI$8:$AI13=TRUE))","v":0},{"$f":"SUMPRODUCT((T$8:T13>1)*($AI$8:$AI13=TRUE))","v":0},{"$f":"SUMPRODUCT((U$8:U13>1)*($AI$8:$AI13=TRUE))","v":0},{"$f":"SUMPRODUCT((V$8:V13>1)*($AI$8:$AI13=TRUE))","v":0},{"$f":"SUMPRODUCT((W$8:W13>1)*($AI$8:$AI13=TRUE))","v":0},{"$f":"SUMPRODUCT((X$8:X13>1)*($AI$8:$AI13=TRUE))","v":0},{"$f":"SUMPRODUCT((Y$8:Y13>1)*($AI$8:$AI13=TRUE))","v":0},{"$f":"SUMPRODUCT((Z$8:Z13>1)*($AI$8:$AI13=TRUE))","v":0},{"$f":"SUMPRODUCT((AA$8:AA13>1)*($AI$8:$AI13=TRUE))","v":0},{"$f":"SUMPRODUCT((AB$8:AB13>1)*($AI$8:$AI13=TRUE))","v":0},{"$f":"SUMPRODUCT((AC$8:AC13>1)*($AI$8:$AI13=TRUE))","v":0},{"$f":"SUMPRODUCT((AD$8:AD13>1)*($AI$8:$AI13=TRUE))","v":0},{"$f":"SUMPRODUCT((AE$8:AE13>1)*($AI$8:$AI13=TRUE))","v":0}]